{"text_format":"1","workbook":"xlsx","n_sheets":7,"sheets":["Version Log","Checklist & Submission Summary","Pre Permit Checklist","Mid Construction Checklist","As-Built Checklist","GHG Calculator FAQ","GHG Calculator Checklist"],"not_rendered":{"charts":0,"images":2,"macros":1,"external_links":0,"defined_names":8,"comments":4,"pivot_tables":0},"unopened":[],"bounds":{"document_bytes":16777216,"sheet_cells":100000,"rows_first":2000,"rows_last":500,"rows_between":2000,"halvings":0,"cell_chars":16384,"cell_head_chars":4096},"cells_cut":0,"cells_raw":0,"read":"whole","date_system":"1900"}

{"sheet":"Version Log","index":0,"n_rows":21,"n_cols":10,"rows_kept":21,"cut":false,"hidden":false,"merged":[[1,1,1,4],[2,1,2,4],[4,1,4,4],[6,1,6,4]]}
[]
[null,"New Homes Checklists for Residential 1-3 Storey Projects"]
[null,"Version Updates and Change Log"]
[]
[null,"This tab is to track changes made in new checklist versions and which checklists are no longer accepted\n"]
[null,"Version #","Date implemented","Description of Changes","Acceptable for Submission?"]
[null,"New Home Energy Checklists (Pre Permit, Mid Construction)"]
[null,"Older - Word Files","2007 to 2018","The original checklists, now out of date","No"]
[null,"1.1.5","March 2018","Major Update\nSwitched to Excel-based\nCombined Pre permit and pre-drywall checklists into one document","No"]
[null,"1.2.0","April 2018","Formatting fixes","2020 applications and earlier"]
[null,"1.2.1","November 2018","Formatting fixes, changed to 'mid construction checklist'","2020 applications and earlier",null,null," "]
[null,"1.2.2","May 2019","Major Update\nChecklists can be used for all 1-3 storey residential buildings","2020 applications and earlier"]
[null,"1.2.3","June 2019","Formatting fixes","2020 applications and earlier"]
[null,"1.2.4.","October 2019","Formatting fixes","2020 applications and earlier"]
[null,2.1,"January 2021","Major Update\nCombined energy checklists and GHG calculator into one document \nAdded version log\nAll forms: updated formatting / theme to grey & white color scheme\nPre-permit checklist: Added checkboxes for CHBA Net Zero, ILFI, Passive House. \nLanguage alignment with BC Step Code Pre-construction checklist\nMid Construction Checklist: major revisions in alignment with BC Step Code checklist\nFinal (as-built) Checklist: created new checklist for pre-occupancy inspection\nGHG Calculator: GHG limit is 2 tonnes / year starting January 2021","Use version 2.2 or later for submissions after January 1st 2021",null,null,null,null," "]
[null,2.2000000000000002,"January 2021","GHG Calculator: 2 tonne limit implementation starts June 1st 2021\nMinor formatting fixes"," Applications in 2021"]
[null,2.2999999999999998,"September 2021","Minor functionality fixes\nComments added back to GHG calculator (missing in previous version)"," Applications in 2021"]
[null,2.4,"January 2022","Major Update\nVBBL 2022 energy updates for 1-3 storey residential go into effect for building permits submitted after January 1st 2022\n- All checklists have a 'Energy Pathway' to select 1 of 3 pathway options. The checklist updates based on this selection\n- for performance path projects, the pre-permit checklist added a MEUI, TEDI and GHGI table with formulas to calculate compliance\n- mid construction and final checklists have automatic formulas to update the requirement list based on selected energy pathway\n","Applications after January 1st 2022"]
[null,2.5,"January 2022","- Added GHGI calculator in Pre Permit Checklist\n- Added 'Fireplace' row in As-built checklist\n- Large Home GHG - home size threshold is based only on HOT2000 modelled floor area (not architect floor area) ","Applications after January 1st 2022"]
[null,"2.5.1","March 2023","Terminology change:\n\"Project Area-weighted average\" to \"Building (or portion of) area-weighted average\" ","Applications after January 1st 2022"]
[null,2.6,"May 2023","- Removed area-weighted average calculator for TEDI, TEUI, GHGI\n- Added checkbox to allow modelling with COV Energy Modelling Guidelines and hourly modelling software, if certain projects require it\n- Added \"Other\" airtightness option to account for other 'beyond code' targets, e.g. Passive House, Net Zero\n- Removed the \"Submissions Requirements\" tab ( replaced by Energy Modelling Guidelines and Airtightness Bulletin)\n- Removed 'VBBL summary' tab. Please see the Builder's Guide for a summary of current energy requirements \n- Added: large Home GHG calculator is exempt for Net Zero projects\n","Applications after January 1st 2022"]

{"sheet":"Checklist & Submission Summary","index":1,"n_rows":78,"n_cols":40,"rows_kept":78,"cut":false,"hidden":false,"merged":[[0,0,0,33],[52,2,55,31],[45,9,45,21],[41,2,43,31],[47,2,50,31],[2,1,4,33],[10,1,10,32],[12,1,12,32],[16,1,16,9],[22,1,22,32],[24,1,24,32],[14,1,14,32],[33,1,33,32],[26,1,26,9],[30,1,30,32],[35,1,35,9],[66,1,66,32],[69,1,69,32],[73,1,73,9],[57,1,57,32],[60,1,60,32],[61,1,61,9]]}
["New Homes - Energy Checklists"]
[]
[null,"These checklists are for use by Energy Advisors (or other accepted certified advisors) to qualify and quantify that the energy efficiency measures indicated in the home design, and then confirm these measures as installed.  \n\nThe requirements and checklists apply to single family homes, laneway homes, townhouses, rowhouses, duplexes and Multi Family Residential buildings up to 3 storeys and under 600m2.\n\nThe Energy Advisor must be certified through an NRCan-recognized Service Organization. The Energy Advisor must complete the work on-site, or at least be present on-site when work is being completed. \n\nSome projects may be out of scope for an Energy Advisor. In this case, a qualified professional must complete the forms, and complete the associated testing and on-site verification as required. \n\nFor Building permit applications before January 1st 2022, use version 2.3 of the checklists, found on the 1-3 storey energy webpage below\nFor Building permit applications after January 1st 2022, must use version 2.4 or later. For new building permit applications, use the most up-to-date checklist available on the website at time of submission.  Checklists do not need to be updated to the most recent version, should there be a delay between submission and review \n\n If you have any questions regarding the information requested on this form:\n\n"]
[]
[]
[null,null,null,"- Visit the ",null,null,"Energy for 1-3 storey residential buildings page on the City of Vancouver website"]
[null,null,null,"- Review the Builder's Guide to VBBL 2022 Updates - located on above page"]
[null,null,null,"- Refer to the latest VBBL, found here for free",null,null,null,null,null,null,null,null,null,null,null,"https://www.bcpublications.ca/BCPublications/ "]
[null,null,null,"- or call the Enquiry Centre at 604-873-7611"]
[]
[null,"1.0 PRE PERMIT CHECKLIST"]
[]
[null,"For every new home in Vancouver, an Energy Advisor (EA) must complete a pre-permit checklist. The reason is to have an EA review the plans to check that all the energy components, including envelope, glazing and mechanical, all meet the Vancouver Building Bylaw, and will provide energy-efficient outcomes for the future homeowner."]
[]
[null,"This checklist is required for all new 1-3 storey residential Building Permit applications"]
[]
[null,"Submission Requirements"]
[]
[null,"A completed pre-permit checklist is to be submitted to City intake staff in order to obtain a building permit."]
[null,"A P-file (or equivalent approved energy model such as PHPP) must  be created and submitted to your Service Organization"]
[null,"For MURBs - use ERS version 15 or later to model either the MURB unit by unit or whole building"]
[]
[null,"2.0 MID CONSTRUCTION CHECKLIST"]
[]
[null,"The mid-construction checklist is completed on-site for insulation inspection. It is to ensure that all the stated components listed in the building plans and the pre-permit checklist, unless otherwised changed, have been installed as indicated in the plans. A blower door test must be completed with the home meeting the specified air change target."]
[]
[null,"Submission Requirements"]
[]
[null,"The completed mid-construction checklist is to be submitted to the City building official at sheathing / insulation inspection."]
[]
[null,"3.0 FINAL OCCUPANCY / AS-BUILT"]
[]
[null,"To obtain the occupancy permit, a final EnerGuide (N-file) assessment of the home must be completed, or equivalent accepted model. "]
[null,"Complete and submit a Homeowner Information Sheet (HOIS) with ACH and NLA (for laneway homes) blower door test results"]
[]
[null,"Submission Requirements"]
[]
[null,"Complete and submit an N-file to your Service Organization"]
[null,"The completed final checklist is to be submitted, along with supporting documents, to the City building official at final inspection"]
[]
[]
[]
[]
[]
[]
[]
[]
[]
[]
[]
[]
[]
[]
[]
[]
[]
[]
[null,"4.0 REZONING CHECKLIST"]
[]
[null,"Project that undergo 'Rezoning' the process of City Council approving the change in zone of a site to accommodate a different"]
[null,"(typically more dense) building form, must meet additional energy requirements."]
[null,"Submission Requirements"]
[]
[null,"The 1-3 storey Rezoning Checklist must be completed for Rezoning Permit application. At Building Permit stage, the upgrades in the"]
[null,"Pre-permit checklist must match. Refer to the bulletin under \"Green Buildings Policy for Rezonings\"",null,null,null,null,null,null,null,null,null,null,null,null,null,null,null,null,null,null,null,null,null,null,null,null,"vancouver.ca/zero-emissions"]
[]
[null,"5.0 GREENHOUSE GAS (GHG) CALCULATOR CHECKLIST"]
[null,null,null,null,null,null,null,null,null,null,null,null,null,null,null,null,null,null,null,null,null,null,null,null,null,null,null,null,null,null,null,null,null,null,null,null,null,null,null," "]
[null,"1&2 Family homes with a primary dwelling floor area ≥325 m2 applying for a Building Permit after March 1st 2018 must be designed "]
[null,"such that the annual greenhouse gas emissions are less than 3 tonnes / year (reduced to 2 tonnes per year for applications after June 1st 2021). This includes the main dwelling, as well as all supplemental buildings and services on site. "]
[]
[null,"Modelling Guidelines for Large Homes:",null,null,null,null,null,null,null,null,null,null,"https://vancouver.ca/files/cov/modelling-guidelines-large-homes.pdf "]
[]
[null,"Submission Requirements"]
[]
[null,"Refer to the tabs at the end for instructions and the GHG Calculator Checklist. The completed checklist must be submitted"]
[null,"at Building Permit stage to confirm the design is compliant, and again the updated checklist to confirm the final constructed building"]
[null,"at final occupancy inspection"]

{"sheet":"Pre Permit Checklist","index":2,"n_rows":263,"n_cols":61,"rows_kept":263,"cut":false,"hidden":false,"merged":[[24,17,25,20],[58,5,58,18],[60,5,60,18],[54,38,55,40],[28,3,28,12],[68,38,69,40],[70,19,71,32],[70,33,71,37],[27,17,27,20],[68,3,77,4],[68,5,68,18],[58,38,59,40],[60,19,61,24],[60,25,61,32],[56,33,57,37],[58,19,59,32],[58,33,59,37],[64,5,64,18],[66,5,66,18],[63,5,63,18],[65,5,65,18],[75,5,75,18],[77,5,77,18],[73,5,73,18],[76,38,77,40],[76,5,76,18],[29,13,29,16],[30,13,30,16],[28,17,28,20],[29,17,29,20],[30,17,30,20],[72,19,73,32],[72,33,73,37],[68,19,69,32],[76,19,77,32],[59,5,59,18],[38,3,38,12],[54,19,55,32],[35,17,36,20],[70,38,71,40],[69,5,69,18],[71,5,71,18],[64,38,65,40],[66,19,67,32],[66,33,67,37],[66,38,67,40],[56,38,57,40],[76,33,77,37],[6,30,6,34],[89,3,89,8],[90,3,90,8],[91,3,91,8],[87,9,87,19],[88,9,88,19],[89,9,89,19],[90,9,90,19],[91,9,92,19],[87,30,87,40],[92,30,92,40],[89,21,90,29],[89,30,90,40],[87,3,87,8],[88,3,88,8],[72,38,73,40],[74,19,75,32],[74,33,75,37],[74,38,75,40],[82,3,82,40],[43,3,43,40],[20,27,20,34],[20,37,20,38],[16,37,16,38],[72,5,72,18],[74,5,74,18],[70,5,70,18],[7,30,7,34],[8,30,8,34],[37,25,37,28],[29,21,29,25],[30,21,30,25],[42,37,42,40],[40,37,40,40],[41,37,41,40],[39,37,39,40],[39,21,39,24],[40,21,40,24],[41,21,41,24],[39,25,39,28],[40,25,40,28],[41,25,41,28],[29,31,29,35],[37,37,37,40],[38,37,38,40],[10,30,10,34],[11,30,11,34],[17,37,17,38],[128,11,128,15],[44,3,44,40],[48,19,49,32],[48,33,49,37],[48,38,49,40],[50,19,51,32],[50,33,51,37],[50,38,51,40],[52,19,53,32],[52,33,53,37],[52,38,53,40],[46,3,61,4],[46,19,47,32],[46,33,47,37],[46,38,47,40],[62,3,67,4],[62,19,63,32],[62,33,63,37],[62,38,63,40],[55,5,55,18],[51,5,51,18],[78,3,78,40],[79,3,80,40],[88,30,88,40],[28,13,28,16],[57,5,57,18],[1,3,3,6],[1,38,1,40],[2,38,2,40],[3,38,3,40],[1,7,3,37],[4,3,4,40],[6,21,6,29],[9,8,9,15],[5,3,5,40],[7,21,7,29],[8,21,8,29],[9,21,9,29],[6,8,6,15],[9,16,9,20],[6,16,6,20],[7,8,7,15],[7,16,7,20],[8,16,8,20],[9,30,9,34],[54,5,54,18],[56,5,56,18],[53,5,53,18],[29,3,29,12],[35,13,36,16],[37,3,37,12],[37,13,37,16],[41,3,41,12],[41,13,41,16],[39,3,39,12],[39,13,39,16],[40,17,40,20],[40,3,40,12],[40,13,40,16],[41,17,41,20],[32,3,32,40],[35,32,36,36],[37,21,37,24],[38,21,38,24],[38,25,38,28],[37,32,37,36],[38,32,38,36],[35,21,36,24],[37,17,37,20],[38,17,38,20],[30,3,30,12],[8,8,8,15],[10,8,10,15],[10,16,10,20],[10,21,10,29],[13,3,13,40],[15,6,15,19],[15,27,15,38],[21,27,21,38],[23,3,23,40],[11,8,11,15],[11,16,11,20],[11,21,11,29],[26,17,26,20],[26,13,26,16],[27,13,27,16],[26,3,26,12],[27,3,27,12],[17,6,17,19],[25,21,25,30],[60,38,61,40],[61,5,61,18],[45,38,45,40],[24,3,25,12],[24,13,25,16],[24,31,24,40],[24,21,24,30],[26,21,26,25],[27,21,27,25],[28,21,28,25],[25,31,25,40],[26,31,26,35],[27,31,27,35],[28,31,28,35],[35,3,36,12],[38,13,38,16],[39,17,39,20],[54,33,55,37],[56,19,57,32],[45,3,45,4],[45,19,45,32],[45,33,45,37],[52,5,52,18],[64,19,65,32],[60,33,61,37],[67,5,67,18],[62,5,62,18],[64,33,65,37],[45,5,45,18],[46,5,46,18],[47,5,47,18],[48,5,48,18],[49,5,49,18],[50,5,50,18],[68,33,69,37],[30,31,30,35],[26,26,26,30],[27,26,27,30],[28,26,28,30],[29,26,29,30],[30,26,30,30],[26,36,26,40],[27,36,27,40],[28,36,28,40],[29,36,29,40],[30,36,30,40],[39,32,39,36],[40,32,40,36],[41,32,41,36],[31,36,31,40],[31,31,31,35],[35,25,36,31],[37,29,37,31],[38,29,38,31],[39,29,39,31],[40,29,40,31],[41,29,41,31],[35,37,36,40]]}
[]
[null,null,null,null,null,null,null,"PRE-PERMIT ENERGY CHECKLIST \nfor 1&2 Family and 1-3 Storey Residential Buildings",null,null,null,null,null,null,null,null,null,null,null,null,null,null,null,null,null,null,null,null,null,null,null,null,null,null,null,null,null,null,"Version"]
[" ",null,null,null,null,null,null,null,null,null,null,null,null,null,null,null,null,null,null,null,null,null,null,null,null,null,null,null,null,null,null,null,null,null,null,null,null,null,2.6]
[null,null,null,null,null,null,null,null,null,null,null,null,null,null,null,null,null,null,null,null,null,null,null,null,null,null,null,null,null,null,null,null,null,null,null,null,null,null,"2023-07-01"]
[null,null,null,"This form is to confirm the Vancouver Building Bylaw energy requirements for new 1-3 storey residential buildings with permit applications after Jan 1st 2022. This form is to be completed, signed and submitted for Building Permit by a qualified energy modeller. One form can represent multiple buildings with matching specifications. ",null,null,null,null,null,null,null,null,null,null,null,null,null,null,null,null,null,null,null,null,null,null,null,null,null,null,null,null,null,null,null,null,null,null,null,null,null,null,null,null,null," "]
[null," ",null,"1. Project Summary",null,null,null,null,null,null,null,null,null,null,null,null,null,null,null,null,null,null,null,null,null,null,null,null,null,null,null,null,null,null,null,null,null,null,null,null,null," "]
[null," ",null,null,null,null,null,null,"Building Address(es)",null,null,null,null,null,null,null,"\nModelled \nFloor Area (m2)",null,null,null,null,"Unit & Model type (dropdown)",null,null,null,null,null,null,null,null,"P File #"]
[null,"->"]
[]
[]
[]
[]
[]
[null,null,null,"2. Energy Pathway & Modelling"]
[null,"->",null,null,"Select VBBL Energy Compliance Path (dropdown, see VBBL tab)",null,null,null,null,null,null,null,null,null,null,null,null,null,null,null,null,null,null,null,null,null,null,"Large Homes (>325m2)"]
[null,"->",null,null,null,null,null,null,null,null,null,null,null,null,null,null,null,null,null,null,null,null,null,null,null,null,null,{"$f":"IF(AND(OR(AND(Q8>325,V8=E123),AND(Q9>325,V9=E123),AND(Q10>325,V10=E123),AND(Q11>325,V11=E123),AND(Q12>325,V12=E123)),AND(AQ132=FALSE,AQ133=FALSE,AQ134=FALSE)),E152,\" \")","v":" "},null,null,null,null,null,null,null,null,null,null,null,null,null,null,null,null," "]
[null,"->",null,null,"Energy modelling software & version: ",null,null,null,null,null,null,null,null,null,null,null,null,null,null,null," ",null,null,null,null,null,null,"Total site GHG's (from calculator tab)",null,null,null,null,null,null,null,null,null,{"$f":"'GHG Calculator Checklist'!H70","v":0}]
[null," ",null,null,null,null,null,null,null,null,null,null,null,null,null,null,null,null,null,null,null,null,null,null,null,null,null,"Window-to-wall ratio > 30%?",null,null,null,null,null,null,null,null,null,"Y"]
[null,"->",null,null,"Energy modelling standard"]
[null,null,null,null,null,null,null,null,null,null,null,null,null,null,null,null,null,null,null,null,null,null,null,null,null,null,null,"Rezoning (N/A for submissions after May 1st 2022)",null,null,null,null,null,null,null,null,null,null,null,null,null,null," "]
[null,"->",null,null,null,null,null,null,null,null,null,null,null,null,null,null,null,null,null,null,null,null,null,null,null,null,null,"Project completed Rezoning"]
[null,null,null,null,null,null,null," ",null,null,null,null,null,null,null,null,null,null,null,null,null,null,null,null,null,null,null,{"$f":"IF(AL21=\"Y\",\"Attach completed rezoning checklist\",\" \")","v":" "}]
[]
[null,null,null,"3. MEUI & TEDI - Performance Path Only"]
[null,"->",null,"Building Address(es)",null,null,null,null,null,null,null,null,null,"\nModelled Floor Area (m2)",null,null,null,"% floor area mech cooled",null,null,null,"REQUIRED\nMEUI                    TEDI",null,null,null,null,null,null,null,null,null,"PROJECT (MODELLED)\nMEUI                   TEDI",null,null,null,null,null,null,null,null,null," "]
[null,null,null,null,null,null,null,null,null,null,null,null,null,null,null,null,null,null,null,null,null,"(kWh/m2/yr)",null,null,null,null,null,null,null,null,null,"(kWh/m2/yr)",null,null,null,null,null,null,null,null,null,null,null," "]
[null,null,null,{"$f":"IF(AV188=0,\" \",AV188)","v":" "},null,null,null,null,null,null,null,null,null,{"$f":"AW188","v":0},null,null,null,null,null,null,null,{"$f":"SUM(AV169:BA169)","v":90},null,null,null,null,20]
[null,null,null,{"$f":"IF(AV189=0,\" \",AV189)","v":" "},null,null,null,null,null,null,null,null,null,{"$f":"AW189","v":0},null,null,null,null,null,null,null,{"$f":"SUM(AV170:BA170)","v":90},null,null,null,null,20]
[null,null,null,{"$f":"IF(AV190=0,\" \",AV190)","v":" "},null,null,null,null,null,null,null,null,null,{"$f":"AW190","v":0},null,null,null,null,null,null,null,{"$f":"SUM(AV171:BA171)","v":90},null,null,null,null,20,null,null,null,null,null,null,null,null,null,null,null,null,null,null,null," "]
[null,null,null,{"$f":"IF(AV191=0,\" \",AV191)","v":" "},null,null,null,null,null,null,null,null,null,{"$f":"AW191","v":0},null,null,null,null,null,null,null,{"$f":"SUM(AV172:BA172)","v":90},null,null,null,null,20]
[null,null,null,{"$f":"IF(AV192=0,\" \",AV192)","v":" "},null,null,null,null,null,null,null,null,null,{"$f":"AW192","v":0},null,null,null,null,null,null,null,{"$f":"SUM(AV173:BA173)","v":90},null,null,null,null,20]
[null,null,null,null,null,null,null,null,null,null,null,null,null,null,null,null,null,null,null,null,null,null,null,null,null,null,null,null,null,null,null,{"$f":"IF(AND(AF27<V27,AF28<V28,AF29<V29,AF30<V30,AF31<V31),\"Complete\",\"Error\")","v":"Complete"},null,null,null,null,{"$f":"IF(AND(AK27<AA27,AK28<AA28,AK29<AA29,AK30<AA30,AK31<AA31),\"Complete\",\"Error\")","v":"Complete"}]
[null,"->",null,"4. GHGI - Performance Path Only"]
[]
[]
[null,null,null,"Address(es) / Unit # ",null,null,null,null,null,null,null,null,null,"Modelled Floor Area (m2)",null,null,null,"Modelled Electricity Use\n(GJ/a)",null,null,null,"Modelled \nGas Use\n(GJ/a)",null,null,null,"Emissions Factors\nElectricity             Gas\n (kgCO2e/GJ)",null,null,null,null,null,null,"Required\n GHGI \n(kgCO2e/m2/yr)",null,null,null,null,"Project \nGHGI \n(kgCO2e/m2/yr)"]
[]
[null,null,null,{"$f":"IF(AV188=0,\" \",AV188)","v":" "},null,null,null,null,null,null,null,null,null,{"$f":"AW188","v":0},null,null,null,null,null,null,null,null,null,null,null,3,null,null,null,51,null,null,3,null,null,null,null,{"$f":"IF(N38=0,0,((R38*Z38+V38*AD38)/N38))","v":0},null,null,null," "]
[null,null,null,{"$f":"IF(AV189=0,\" \",AV189)","v":" "},null,null,null,null,null,null,null,null,null,{"$f":"AW189","v":0},null,null,null,null,null,null,null,null,null,null,null,3,null,null,null,51,null,null,3,null,null,null,null,{"$f":"IF(N39=0,0,((R39*Z39+V39*AD39)/N39))","v":0}]
[null,null,null," ",null,null,null,null,null,null,null,null,null,0,null,null,null,null,null,null,null,null,null,null,null,3,null,null,null,51,null,null,3,null,null,null,null,{"$f":"IF(N40=0,0,((R40*Z40+V40*AD40)/N40))","v":0},null,null,null,null," "]
[null,null,null," ",null,null,null,null,null,null,null,null,null,0,null,null,null,null,null,null,null,null,null,null,null,3,null,null,null,51,null,null,3,null,null,null,null,{"$f":"IF(N41=0,0,((R41*Z41+V41*AD41)/N41))","v":0},null,null,null,null," "]
[null,null,null," ",null,null,null,null,null,null,null,null,null,0,null,null,null,null,null,null,null,null,null,null,null,3,null,null,null,51,null,null,3,null,null,null,null,{"$f":"IF(N42=0,0,((R42*Z42+V42*AD42)/N42))","v":0}]
[null,null,null,null,null,null,null,null,null,null,null,null,null,null,null,null,null,null,null,null,null,null,null,null,null,null,null,null,null,null,null,null,null,null,null,null,null,{"$f":"IF(AND(AL38<AG38,AL39<AG39,AL40<AG40,AL41<AG41,AL42<AG42),\"Complete\",\"Error\")","v":"Complete"}]
[null,null,null,"page 1 of 2"]
[null,null,null,"4. Building Characteristics Summary (completed by all projects)",null,null,null,null,null,null,null,null,null,null,null,null,null,null,null,null,null,null,null,null,null,null,null,null,null,null,null,null,null,null,null,null,null,null,null,null,null,null,null,null," "]
[null,"->",null,null,null,"Energy Requirement",null,null,null,null,null,null,null,null,null,null,null,null,null,"Proposed Specification\n(assembly, system, fuel type, etc.)",null,null,null,null,null,null,null,null,null,null,null,null,null,"R/USI or\nEfficiency ",null,null,null,null,"EA Verified\n(dropdown)"]
[null," ",null,"Insulation and Air Barrier",null,"1.1 Exterior above-grade walls & floor headers"]
[null,null,null,null,null,{"$f":"IF($G$16=$E$156,R227,IF($G$16=$E$155,R193,R159))","v":"Minimum R22 eff. (RSI 3.85)"},null,null,null,null,null,null,null,null,null,null,null,null,null,null,null,null,null,null,null,null,null,null,null,null,null,null,null,null,null,null,null,null,null,null,null,null,null,null,null,null,null," "]
[null,null,null,null,null,"1.2 Below-grade walls"]
[null,null,null,null,null,{"$f":"IF($G$16=$E$156,R229,IF($G$16=$E$155,R195,R161))","v":"Minimum R22 eff. (RSI 3.85)"},null,null,null,null,null,null,null,null,null,null,null,null,null,null,null,null,null,null,null,null,null,null,null,null,null,null,null,null,null,null,null,null,null,null,null," "]
[null,null,null,null,null,"1.3 Flat attic"]
[null,null,null,null,null,{"$f":"IF($G$16=$E$156,R231,IF($G$16=$E$155,R197,R163))","v":"Minimum R48 effective (RSI 8.5)"}]
[null,"->",null,null,null,"1.4 Flat, vaulted and cathedral roofs"]
[null,null,null,null,null,{"$f":"IF($G$16=$E$156,R233,IF($G$16=$E$155,R199,R165))","v":"Units >110sq.m = R40 eff. (RSI 7.0); \nUnits <110sq.m = R30 (RSI 5.28)"}]
[null,null,null,null,null,"1.5 Under foundation slab "]
[null,null,null,null,null,{"$f":"IF($G$16=$E$156,R235,IF($G$16=$E$155,R201,R167))","v":"Minimum R14 eff. (RSI 2.5)"}]
[null,null,null,null,null,"1.6 Exposed floors"]
[null,null,null,null,null,{"$f":"IF($G$16=$E$156,R237,IF($G$16=$E$155,R203,R169))","v":"Minimum R24 eff. (RSI 4.2)"},null,null,null,null,null,null,null,null,null,null,null,null,null,null,null,null,null,null,null,null,null,null,null,null,null,null,null,null,null,null,null,null,null,null,null,null," "]
[null,null,null,null,null,"1.7 Balconies, eyebrows, and exposed slab edge"]
[null,null,null,null,null,{"$f":"IF($G$16=$E$156,R239,IF($G$16=$E$155,R205,R171))","v":"Thermal break meets R2.4 eff. (RSI 0.42)"}]
[null,null,null,null,null,"1.8 Air barrier ",null,null,null,null,null,null,null,null,null,null,null,null,null,"*select primary air barrier*",null,null,null,null,null,"*select air tightness requirement*"]
[null,null,null,null,null,{"$f":"IF($G$16=$E$156,R241,IF($G$16=$E$155,R207,R173))","v":"Continuous air barrier design"}]
[null,"->",null,"Fenestration",null,"2.1 Side-hinged doors"]
[null,null,null,null,null,{"$f":"IF($G$16=$E$156,R243,IF($G$16=$E$155,R209,R175))","v":"Aside from front entry door, USI 1.80 or lower"}]
[null,null,null,null,null,"2.2 Windows, curtainwalls and glazed doors"]
[null,null,null,null,null,{"$f":"IF($G$16=$E$156,R245,IF($G$16=$E$155,R211,R177))","v":"USI 1.22 or lower"}]
[null,null,null,null,null,"2.3 Skylights and roof hatches   "]
[null,null,null,null,null,{"$f":"IF($G$16=$E$156,R247,IF($G$16=$E$155,R213,R179))","v":"Skylights USI 2.4 or lower. Roof hatches USI 2.9 or lower"}]
[null,null,null,"Mechanical",null,"3.1 Ventilation "]
[null,null,null,null,null,{"$f":"IF($G$16=$E$156,R249,IF($G$16=$E$155,R215,R181))","v":"HRV - 75% SRE @ 0 deg C (on continuous mode or better). 65% for Laneway Homes"}]
[null,null,null,null,null,"3.2 Heating systems"]
[null,null,null,null,null,{"$f":"IF($G$16=$E$156,R251,IF($G$16=$E$155,R217,R183))","v":"Electric-based system \n(e.g. heat pump, baseboards, electric boiler / furnace)"}]
[null,"->",null,null,null,"3.3 Fireplaces"]
[null,null,null,null,null,{"$f":"IF($G$16=$E$156,R253,IF($G$16=$E$155,R219,R185))","v":"Direct vent electronic ignition and timer. \nMaximum combined 60,000 BTU allowable limit"},null,null,null,null,null,null,null,null,null,null,null,null,null,null,null,null,null,null,null,null,null,null,null,null,null,null,null,null,null,null,null,null,null,null,null,null,null," "]
[null,null,null,null,null,"3.4 Domestic hot water"]
[null,null,null,null,null,{"$f":"IF($G$16=$E$156,R255,IF($G$16=$E$155,R221,R187))","v":"Electric-based system (heat pump, tank, or tankless)"}]
[null,null,null,null,null,"3.5 Recirculating system"]
[null,null,null,null,null,{"$f":"IF($G$16=$E$156,R257,IF($G$16=$E$155,R223,R189))","v":"Piping wrapped with pipe insulation R2 (RSI 0.35)"}]
[null,null,null,"5. Additional Notes"]
[]
[]
[]
[null,null,null,"6. Contact Information & Authorization",null,null,null,null,null,null,null,null,null,null,null,null,null,null,null,null,null,null,null,null,null,null,null,null,null,null,null,null,null,null,null,null,null,null,null,null,null,null,null,null,null,null,null,null,null,null,null,null,null,null,null,null,null,null,null,null," "]
[null,null,null,null,null,"As the Energy Advisor (or qualified energy modeller) assigned to this project, by signing I certify that:"]
[null,null,null,null,null,"• This checklist was completed based on information provided by the builder and the most recent prepared drawings ",null,null,null,null,null,null,null,null,null,null,null,null,null,null,null,null,null,null,null,null,null,null,null,null,null,null,null,null,null,null,null,null,null," ",null,null,null,null,null,null,null,null,null,null,null,null,null,null," "]
[null,null,null,null,null,"• (for Energuide-based projects) the P-file will be submitted to your Service Organization for submission to NRCan"]
[]
[null,null,null,"EA name and EA #:",null,null,null,null,null,null,null,null,null,null,null,null,null,null,null,null,null,"  Builder company & contact",null,null,null,null,null,null,null,null,null,null,null,null,null,null,null,null,null,null,null,null," "]
[null,null,null,"Email address: ",null,null,null,null,null,null,null,null,null,null,null,null,null,null,null,null,null,"  Builder #: ",null,null,null,null,null,null,null,null,null,null,null,null,null,null,null,null,null,null,null," "," "]
[null,null,null,"Phone:",null,null,null,null,null,null,null,null,null,null,null,null,null,null,null,null,null,"  Builder Signature:"]
[null,null,null,"Business License #:"]
[null,null,null,"Signature"]
[null,null,null,null,null,null,null,null,null,null,null,null,null,null,null,null,null,null,null,null,null,"  Date:"]
[null,null,null,"Visit www.vancouver.ca/homeenergy for the latest version of this form",null,null,null,null,null,null,null,null,null,null,null,null,null,null,null,null,null,null,null,null,null,null,null,null,null,null,null,null,null,null,null,null,null,null,null,null,null,null," "]
[]
[null,null,null,"page 2 of 2",null,null,null,null,null,null,null,null,null,null,null,null,null,null,null,null,null,null,null," "]
[null,null,null,null,null,null,null,null,null,null,null,null,null,null,null,null,null,null,null,null,null,null," "]
[null,null,null,null,null,null,null,null,null,null,null,null,null,null,null,null,null,null,null,null,null,null,null,null,null,null,null,null,null,null,null,null,null," "]
[null,null,null,null,null,null,null,null,null,null,null,null,null,null,null,null,null,null,null,null,null,null,null,null,null,null,null,null,null,null,null," "]
[]
[]
[null,null,null,null,null,null,null,null,null,null,null,null,null,null,null,null,null,null,null,null,null,null,null,null,null,null,null,null,null,null,null,null,null,null," "]
[]
[]
[]
[]
[]
[]
[]
[]
[]
[]
[]
[]
[]
[]
[]
[null,null,null,"Tables hidden below  ò"]
[null,null,null,null,"MURB - whole building"]
[null,null,null,null,"MURB - per unit"]
[]
[null,null,null,null,"Laneway House"]
[null,null,null,null,"1&2 Family"]
[null,null,null,null,"Ground-oriented unit (other)"]
[null,null,null,null,"Stacked MURB (per unit)"]
[null,null,null,null,"Stacked MURB (whole building)"]
[]
[]
[null,null,null,null,"X"]
[]
[]
[null,null,null,null,null,null,null,null,null,null,null,null,null,null,null,null,null,null,null,null,null,null,null,null,null,null,null,null,null,null,null,null,null,null,null,null,null,null,null,null,null,"PH",false]
[null,null,null,null,"Yes",null,null,null,null,null,null,null,null,null,null,"*select primary air barrier*",null,null,null,null,null,null,null,null,"*select air tightness requirement*",null,null,null,null,null,null,null,null,null,null,null,null,null,null,null,null,"CHBA",false]
[null,null,null,null,"Needs revision",null,null,null,null,null,null,null,null,null,null,"Interior - polyethylene",null,null,null,null,null,null,null,null,"2.5 ACH @50Pa - Ground oriented dwellings",null,null,null,null,null,null,null,null,null,null,null,null,null,null,null,null,"ILFI",false]
[null,null,null,null,"N/A",null,null,null,null,null,null,null,null,null,null,"Interior - airtight drywall",null,null,null,null,null,null,null,null,"1.7cm2/m2 NLA @10Pa - dwellings under 110m2"]
[null,null,null,null,"Passive House project",null,null,null,null,null,null,null,null,null,null,"Exterior - sealed membrane",null,null,null,null,null,null,null,null,"2.0 L/s/m2 @ 75Pa - multi-family whole building"]
[null,null,null,null,null,null,null,null,null,null,null,null,null,null,null,"Exterior - taped sheathing",null,null,null,null,null,null,null,null,"Other - clarify in \"Additional Notes\""]
[null,null,null,null,1,null,null,null,null,null,null,null,null,null,null,"Exterior - sealed insulation"]
[null,null,null,null,2,null,null,null,null,null,null,null,null,null,null,"Other (indicate in \"Additional Notes\")"]
[null,null,null,null,3,null,null,null,null,null,null,null,null,null,null,"N/A"]
[null,null,null,null,4]
[null,null,null,null,5]
[null,null,null,null,6,null,null,null,null,null,null,null,null,null,null,"-"]
[null,null,null,null,7,null,null,null,null,null,null,null,null,null,null,"Y"]
[null,null,null,null,8,null,null,null,null,null,null,null,null,null,null,"N"]
[null,null,null,null,9,null,null,null,null,null,null,null,null,null,null,"N/A"]
[null,null,null,null,10]
[null,null,null,null,"-"]
[null,null,null,null,"Y",null,null,null,null,null,null,null,null,null,null,null,null,null,null," "]
[null,null,null,null,"N"]
[]
[null,null,null,null,"GHG Limit calculator required"]
[]
[null,null,null,null,"Option #1: Prescriptive Path"]
[null,null,null,null,"Option #2: Performance Path"]
[null,null,null,null,"Option #3: Passive House Path"]
[]
[null,null,null,null,"REQUIREMENT",null,null,null,null,null,null,null,null,null,null,null,null,"PRESCRIPTIVE PATH",null,null,null,null,null,null,null,null,null,null,null,null," ",null,null,null,null,null,null,null,null,null,null,null,null,null,null,null,null,"Floor area conditioned space (m2)"]
[null,null,null,null,"1.1 Exterior above-grade walls & floor headers",null,null,null,null,null,null,null,null,null,null,null,null,"Minimum R22 eff. (RSI 3.85)",null,null,null,null,null,null,null,null,null,null,null,null,null,null,null,null,null,null,null,null,null,null,null,null,null,null,null,"MECHANICAL COOLING","Step","<50","51-75","76-120","121-165","166-210",">210"]
[null,null,null,null,null,null,null,null,null,null,null,null,null,null,null,null,null,null,null,null,null,null,null,null,null,null,null,null,null,null,null,null,null,null,null,null,null,null,null,null,null,null,null,null,null,"< 50% conditioned space",4,90,80,60,48,40,40]
[null,null,null,null,"1.2 Below-grade walls",null,null,null,null,null,null,null,null,null,null,null,null,"Minimum R22 eff. (RSI 3.85)",null,null,null,null,null,null,null,null,null,null,null,null,null,null,null,null,null,null,null,null,null,null,null,null,null,null,null,"> 50% conditioned space",4,125,108,78,58,48,45]
[]
[null,null,null,null,"1.3 Flat attic",null,null,null,null,null,null,null,null,null,null,null,null,"Minimum R48 effective (RSI 8.5)",null,null,null,null,null,null,null,null,null,null,null,null,null,null,null,null,null,null,null,null,null,null,null,null,null,null,null,null,null,{"$f":"IF($R27<0.5,AV$160,AV$161)","v":90},80,60,48,40,40]
[null,null,null,null,null,null,null,null,null,null,null,null,null,null,null,null,null,null,null,null,null,null,null,null,null,null,null,null,null,null,null,null,null,null,null,null,null,null,null,null,null,null,null,null,null," ",null,90,80,60,48,40,40]
[null,null,null,null,"1.4 Flat, vaulted and cathedral roofs",null,null,null,null,null,null,null,null,null,null,null,null,"Units >110sq.m = R40 eff. (RSI 7.0); \nUnits <110sq.m = R30 (RSI 5.28)",null,null,null,null,null,null,null,null,null,null,null,null,null,null,null,null,null,null,null,null,null,null,null,null,null,null,null,null,null,90,80,60,48,40,40]
[null,null,null,null,null,null,null,null,null,null,null,null,null,null,null,null,null,null,null,null,null,null,null,null,null,null,null,null,null,null,null,null,null,null,null,null,null,null,null,null,null,null,null,null,null,null,null,90,80,60,48,40,40]
[null,null,null,null,"1.5 Under foundation slab ",null,null,null,null,null,null,null,null,null,null,null,null,"Minimum R14 eff. (RSI 2.5)",null,null,null,null,null,null,null,null,null,null,null,null,null,null,null,null,null,null,null,null,null,null,null,null,null,null,null,null,null,90,80,60,48,40,40]
[null,null,null,null,null,null,null,null,null,null,null,null,null,null,null,null,null,null,null,null,null,null,null,null,null,null,null,null,null,null,null,null,null," "]
[null,null,null,null,"1.6 Exposed floors",null,null,null,null,null,null,null,null,null,null,null,null,"Minimum R24 eff. (RSI 4.2)",null,null,null,null,null,null,null,null,null,null,null,null,null,null,null,null,null,null,null,null,null,null,null,null,null,null,null,null,null,{"$f":"IF(N27<=50,AV163,0)","v":90},{"$f":"IF(AND(N27>50,N27<=75),AW163,0)","v":0},{"$f":"IF(AND(N27>75,N27<=120),AX163,0)","v":0},{"$f":"IF(AND(N27>120,N27<=165),AY163,0)","v":0},{"$f":"IF(AND(N27>165,N27<=210),AZ163,0)","v":0},{"$f":"IF(N27>210,BA163,0)","v":0}]
[null,null,null,null,null,null,null,null,null,null,null,null,null,null,null,null,null,null,null,null,null,null,null,null,null,null,null,null,null,null,null,null,null,null," ",null,null,null,null,null,null,null,null,null,null,null,null,{"$f":"IF(N28<=50,AV164,0)","v":90},{"$f":"IF(AND(N28>50,N28<=75),AW164,0)","v":0},{"$f":"IF(AND(N28>75,N28<=120),AX164,0)","v":0},{"$f":"IF(AND(N28>120,N28<=165),AY164,0)","v":0},{"$f":"IF(AND(N28>165,N28<=210),AZ164,0)","v":0},{"$f":"IF(N28>210,BA164,0)","v":0}]
[null,null,null,null,"1.7 Balconies, eyebrows, and exposed slab edge",null,null,null,null,null,null,null,null,null,null,null,null,"Thermal break meets R2.4 eff. (RSI 0.42)",null,null,null,null,null,null,null,null,null,null,null,null,null,null,null,null,null,null,null,null,null,null,null,null,null,null,null,null,null,{"$f":"IF(N29<=50,AV165,0)","v":90},{"$f":"IF(AND(N29>50,N29<=75),AW165,0)","v":0},{"$f":"IF(AND(N29>75,N29<=120),AX165,0)","v":0},{"$f":"IF(AND(N29>120,N29<=165),AY165,0)","v":0},{"$f":"IF(AND(N29>165,N29<=210),AZ165,0)","v":0},{"$f":"IF(N29>210,BA165,0)","v":0}]
[null,null,null,null,null,null,null,null,null,null,null,null,null,null,null,null,null,null,null,null,null,null,null,null,null,null,null,null,null,null,null,null,null,null,null,null,null,null,null,null,null,null,null,null,null,null,null,{"$f":"IF(N30<=50,AV166,0)","v":90},{"$f":"IF(AND(N30>50,N30<=75),AW166,0)","v":0},{"$f":"IF(AND(N30>75,N30<=120),AX166,0)","v":0},{"$f":"IF(AND(N30>120,N30<=165),AY166,0)","v":0},{"$f":"IF(AND(N30>165,N30<=210),AZ166,0)","v":0},{"$f":"IF(N30>210,BA166,0)","v":0}]
[null,null,null,null,"1.8 Air barrier ",null,null,null,null,null,null,null,null,null,null,null,null,"Continuous air barrier design",null,null,null,null,null,null,null,null,null,null,null,null,null,null,null,null,null,null,null,null,null,null,null,null,null,null,null,null,null,{"$f":"IF(N31<=50,AV167,0)","v":90},{"$f":"IF(AND(N31>50,N31<=75),AW167,0)","v":0},{"$f":"IF(AND(N31>75,N31<=120),AX167,0)","v":0},{"$f":"IF(AND(N31>120,N31<=165),AY167,0)","v":0},{"$f":"IF(AND(N31>165,N31<=210),AZ167,0)","v":0},{"$f":"IF(N31>210,BA167,0)","v":0}]
[]
[null,null,null,null,"2.1 Side-hinged doors",null,null,null,null,null,null,null,null,null,null,null,null,"Aside from front entry door, USI 1.80 or lower",null,null,null,null,null,null,null,null,null,null,null,null,null,null,null,null,null,null,null," "]
[null,null,null,null,null,null,null,null,null,null,null,null,null,null,null,null,null,null,null,null,null,null,null,null,null,null,null,null,null,null,null,null,null,null,null,null,null,null,null,null,null,null,null,null,null,null,null,"Metric * m2"," "]
[null,null,null,null,"2.2 Windows, curtainwalls and glazed doors",null,null,null,null,null,null,null,null,null,null,null,null,{"$f":"IF(AND(AB16=E152,AL18=\"Y\"),\"Site average USI 1.04 or lower\",\"USI 1.22 or lower\")","v":"USI 1.22 or lower"},null,null,null,null,null,null,null,null,null,null,null,null,null,null,null,null,null,null,null,null,null,null,null,null,null,null,null,null,null,"REQUIRED",null,null,"PROJECT"]
[null,null,null,null,null,null,null,null,null,null,null,null,null,null,null,null,null,null,null,null,null,null,null,null,null,null,null,null,null,null,null,null,null,null,null,null,null,null,null,null,null,null,null,null,null,null,null,"MEUI","TEDI","GHGI","MEUI ","TEDI","GHGI"]
[null,null,null,null,"2.3 Skylights and roof hatches   ",null,null,null,null,null,null,null,null,null,null,null,null,"Skylights USI 2.4 or lower. Roof hatches USI 2.9 or lower",null,null,null,null,null,null,null,null,null,null,null,null,null,null,null,null,null,null,null,null,null,null,null,null,null,null,null,null,null,{"$f":"$N27*V27","v":0},{"$f":"$N27*AA27","v":0},{"$f":"N27*AG38","v":0},{"$f":"N27*AF27","v":0},{"$f":"N27*AK27","v":0},{"$f":"N27*AL38","v":0}]
[null,null,null,null,null,null,null,null,null,null,null,null,null,null,null,null,null,null,null,null,null,null,null,null,null,null,null,null,null,null,null,null,null,null,null,null,null,null,null,null,null,null,null,null,null,null,null,{"$f":"$N28*V28","v":0},{"$f":"$N28*AA28","v":0},{"$f":"N28*AG39","v":0},{"$f":"N28*AF28","v":0},{"$f":"N28*AK28","v":0},{"$f":"N28*AL39","v":0}]
[null,null,null,null,"3.1 Ventilation ",null,null,null,null,null,null,null,null,null,null,null,null,"HRV - 75% SRE @ 0 deg C (on continuous mode or better). 65% for Laneway Homes",null,null,null,null,null,null,null,null,null,null,null,null,null,null,null,null,null,null,null,null,null,null,null,null,null,null,null,null,null,{"$f":"$N29*V29","v":0},{"$f":"$N29*AA29","v":0},{"$f":"N29*AG40","v":0},{"$f":"N29*AF29","v":0},{"$f":"N29*AK29","v":0},{"$f":"N29*AL40","v":0}]
[null,null,null,null,null,null,null,null,null,null,null,null,null,null,null,null,null,null,null,null,null,null,null,null,null,null,null,null,null,null,null,null,null,null,null,null,null,null,null,null,null,null,null,null,null,null,null,{"$f":"$N30*V30","v":0},{"$f":"$N30*AA30","v":0},{"$f":"N30*AG41","v":0},{"$f":"N30*AF30","v":0},{"$f":"N30*AK30","v":0},{"$f":"N30*AL41","v":0}]
[null,null,null,null,"3.2 Heating systems: ",null,null,null,null,null,null,null,null,null,null,null,null,"Electric-based system \n(e.g. heat pump, baseboards, electric boiler / furnace)",null,null,null,null,null,null,null,null,null,null,null,null,null,null,null,null,null,null,null,null,null,null,null,null,null,null,null,null,null,{"$f":"$N31*V31","v":0},{"$f":"$N31*AA31","v":0},{"$f":"N31*AG42","v":0},{"$f":"N31*AF31","v":0},{"$f":"N31*AK31","v":0},{"$f":"N31*AL42","v":0}]
[]
[null,null,null,null,"3.3 Fireplaces",null,null,null,null,null,null,null,null,null,null,null,null,"Direct vent electronic ignition and timer. \nMaximum combined 60,000 BTU allowable limit"]
[]
[null,null,null,null,"3.4 Domestic hot water",null,null,null,null,null,null,null,null,null,null,null,null,"Electric-based system (heat pump, tank, or tankless)",null,null,null,null,null,null,null,null,null,null,null,null,null,null,null,null,null,null,null,null,null,null,null,null,null,null,null,null,null,"Address & Size conversion"]
[null,null,null,null,null,null,null,null,null,null,null,null,null,null,null,null,null,null,null,null,null,null,null,null,null,null,null,null,null,null,null,null,null,null,null,null,null,null,null,null,null,null,null,null,null,null,null,{"$f":"I8","v":0},{"$f":"Q8","v":0}]
[null,null,null,null,"3.5 Recirculating system",null,null,null,null,null,null,null,null,null,null,null,null,"Piping wrapped with pipe insulation R2 (RSI 0.35)",null,null,null,null,null,null,null,null,null,null,null,null,null,null,null,null,null,null,null,null,null,null,null,null,null,null,null,null,null,{"$f":"I9","v":0},{"$f":"Q9","v":0}]
[null,null,null,null,null,null,null,null,null,null,null,null,null,null,null,null,null,null,null,null,null,null,null,null,null,null,null,null,null,null,null,null,null,null,null,null,null,null,null,null,null,null,null,null,null,null,null,{"$f":"I10","v":0},{"$f":"Q10","v":0}]
[null,null,null,null,null,null,null,null,null,null,null,null,null,null,null,null,null,null,null,null,null,null,null,null,null,null,null,null,null,null,null,null,null,null,null,null,null,null,null,null,null,null,null,null,null,null,null,{"$f":"I11","v":0},{"$f":"Q11","v":0}]
[null,null,null,null,"REQUIREMENT",null,null,null,null,null,null,null,null,null,null,null,null,"PERFORMANCE PATH",null,null,null,null,null,null,null,null,null,null,null,null,null,null,null,null,null,null,null,null,null,null,null,null,null,null,null,null,null,{"$f":"I12","v":0},{"$f":"Q12","v":0}]
[null,null,null,null,"1.1 Exterior above-grade walls & floor headers",null,null,null,null,null,null,null,null,null,null,null,null,"Minimum R22 eff. (RSI 3.85)"]
[]
[null,null,null,null,"1.2 Below-grade walls",null,null,null,null,null,null,null,null,null,null,null,null,"Minimum R22 eff. (RSI 3.85)",null,null,null,null,null,null,null," "]
[]
[null,null,null,null,"1.3 Flat attic",null,null,null,null,null,null,null,null,null,null,null,null,"Minimum R48 effective (RSI 8.5)"]
[]
[null,null,null,null,"1.4 Flat, vaulted and cathedral roofs",null,null,null,null,null,null,null,null,null,null,null,null,"R30 eff. (RSI 5.28); 1&2 Family + LWH: R24 eff. (RSI 4.3)"]
[]
[null,null,null,null,"1.5 Under foundation slab ",null,null,null,null,null,null,null,null,null,null,null,null,"Minimum R14 eff. (RSI 2.5)"]
[]
[null,null,null,null,"1.6 Exposed floors",null,null,null,null,null,null,null,null,null,null,null,null,"Minimum R24 eff. (RSI 4.2)"]
[]
[null,null,null,null,"1.7 Balconies, eyebrows, and exposed slab edge",null,null,null,null,null,null,null,null,null,null,null,null,"Thermal break meets R2.4 eff. (RSI 0.42)"]
[]
[null,null,null,null,"1.8 Air barrier ",null,null,null,null,null,null,null,null,null,null,null,null,"Continuous air barrier - 2.5 ACH50 (or permitted alternative)"]
[]
[null,null,null,null,"2.1 Side-hinged doors",null,null,null,null,null,null,null,null,null,null,null,null,"Aside from front entry door, USI 1.80 or lower"]
[]
[null,null,null,null,"2.2 Windows, curtainwalls and glazed doors",null,null,null,null,null,null,null,null,null,null,null,null,"USI 1.44 or lower"]
[]
[null,null,null,null,"2.3 Skylights and roof hatches   ",null,null,null,null,null,null,null,null,null,null,null,null,"Skylights USI 2.4 or lower. Roof hatches USI 2.9 or lower"]
[]
[null,null,null,null,"3.1 Ventilation ",null,null,null,null,null,null,null,null,null,null,null,null,"HRV - 75% SRE @ 0 deg C (on continuous mode or better). 65% for Laneway Homes"]
[]
[null,null,null,null,"3.2 Heating systems: ",null,null,null,null,null,null,null,null,null,null,null,null,"Electric or gas. Gas systems: minimum 92% AFUE, no side venting. Indicate backup / secondary systems"]
[]
[null,null,null,null,"3.3 Fireplaces",null,null,null,null,null,null,null,null,null,null,null,null,"Direct vent electronic ignition and timer (outdoor: electric or match). \nIndicate total number of fireplaces"]
[]
[null,null,null,null,"3.4 Domestic hot water",null,null,null,null,null,null,null,null,null,null,null,null,"Energy Factor (UEF or EF) ≥ 0.78\n or thermal efficiency (TE) ≥ 90% "]
[]
[null,null,null,null,"3.5 Recirculating system",null,null,null,null,null,null,null,null,null,null,null,null,"Piping wrapped with pipe insulation R2 (RSI 0.35)"]
[]
[]
[null,null,null,null,"REQUIREMENT",null,null,null,null,null,null,null,null,null,null,null,null,"PASSIVE HOUSE PATH"]
[null,null,null,null,"1.1 Exterior above-grade walls & floor headers",null,null,null,null,null,null,null,null,null,null,null,null,"Minimum R22 eff. (RSI 3.85)"]
[]
[null,null,null,null,"1.2 Below-grade walls",null,null,null,null,null,null,null,null,null,null,null,null,"Minimum R22 eff. (RSI 3.85)"]
[]
[null,null,null,null,"1.3 Flat attic",null,null,null,null,null,null,null,null,null,null,null,null,"Minimum R48 effective (RSI 8.5)"]
[]
[null,null,null,null,"1.4 Flat, vaulted and cathedral roofs",null,null,null,null,null,null,null,null,null,null,null,null,"R30 eff. (RSI 5.28); 1&2 Family + LWH: R24 eff. (RSI 4.3)"]
[]
[null,null,null,null,"1.5 Under foundation slab ",null,null,null,null,null,null,null,null,null,null,null,null,"Minimum R14 eff. (RSI 2.5)"]
[]
[null,null,null,null,"1.6 Exposed floors",null,null,null,null,null,null,null,null,null,null,null,null,"Minimum R24 eff. (RSI 4.2)"]
[]
[null,null,null,null,"1.7 Balconies, eyebrows, and exposed slab edge",null,null,null,null,null,null,null,null,null,null,null,null,"Thermal break meets R2.4 eff. (RSI 0.42)"]
[]
[null,null,null,null,"1.8 Air barrier ",null,null,null,null,null,null,null,null,null,null,null,null,"Continuous air barrier - 2.5 ACH50 (or permitted alternative)"]
[]
[null,null,null,null,"2.1 Side-hinged doors",null,null,null,null,null,null,null,null,null,null,null,null,"Aside from front entry door, USI 1.84 or lower"]
[]
[null,null,null,null,"2.2 Windows, curtainwalls and glazed doors",null,null,null,null,null,null,null,null,null,null,null,null,"USI 1.44 or lower"]
[]
[null,null,null,null,"2.3 Skylights and roof hatches   ",null,null,null,null,null,null,null,null,null,null,null,null,"Skylights USI 2.4 or lower. Roof hatches USI 2.9 or lower"]
[]
[null,null,null,null,"3.1 Ventilation ",null,null,null,null,null,null,null,null,null,null,null,null,"HRV - 75% SRE @ 0 deg C (on continuous mode or better). 65% for Laneway Homes"]
[]
[null,null,null,null,"3.2 Heating systems: ",null,null,null,null,null,null,null,null,null,null,null,null,"Electric or gas. Gas systems: minimum 92% AFUE, no side venting. Indicate backup / secondary systems"]
[]
[null,null,null,null,"3.3 Fireplaces",null,null,null,null,null,null,null,null,null,null,null,null,"Direct vent electronic ignition and timer (outdoor: electric or match). \nIndicate total number of fireplaces"]
[]
[null,null,null,null,"3.4 Domestic hot water",null,null,null,null,null,null,null,null,null,null,null,null,"Energy Factor (UEF or EF) ≥ 0.78\n or thermal efficiency (TE) ≥ 90% "]
[]
[null,null,null,null,"3.5 Recirculating system",null,null,null,null,null,null,null,null,null,null,null,null,"Piping wrapped with pipe insulation R2 (RSI 0.35)"]
[]
[]
[]
[]
[]
[null,null,null,null,null,null,null,null,null,null,null,null,null,null,null,null,null,null,null,null,null,null,null,null," "]

{"sheet":"Mid Construction Checklist","index":3,"n_rows":254,"n_cols":44,"rows_kept":254,"cut":false,"hidden":false,"merged":[[5,3,5,34],[60,3,60,34],[109,26,109,34],[110,26,110,34],[92,16,93,22],[114,10,114,19],[112,10,113,19],[103,3,103,34],[112,26,113,34],[109,10,109,19],[110,10,110,19],[111,10,111,19],[92,4,93,7],[43,21,45,24],[46,10,48,20],[46,21,48,24],[49,3,49,9],[100,4,101,33],[55,3,57,9],[7,25,7,34],[94,8,94,11],[94,25,95,33],[92,25,92,32],[52,10,54,20],[2,0,4,1],[2,32,2,34],[3,32,3,34],[4,3,4,34],[90,4,90,14],[49,25,51,34],[52,25,54,34],[49,10,51,20],[49,21,51,24],[13,3,13,34],[20,25,22,34],[10,3,10,34],[11,25,12,34],[1,3,3,6],[1,7,3,31],[1,32,1,34],[32,3,32,34],[50,3,51,9],[43,3,43,9],[44,3,45,9],[8,25,8,34],[7,8,7,17],[8,8,8,17],[19,3,19,9],[11,3,12,9],[36,10,38,20],[36,21,38,24],[39,10,41,20],[39,21,41,24],[11,21,12,24],[11,10,12,20],[36,25,38,34],[23,21,25,24],[23,25,25,34],[26,3,26,9],[20,3,20,9],[21,3,22,9],[14,3,14,9],[15,3,16,9],[14,25,16,34],[17,25,19,34],[39,25,41,34],[27,3,28,9],[17,3,18,9],[36,3,36,9],[41,3,41,9],[39,3,40,9],[24,3,25,9],[96,25,97,33],[14,10,16,20],[14,21,16,24],[17,10,19,20],[17,21,19,24],[20,10,22,20],[20,21,22,24],[26,10,28,20],[26,21,28,24],[29,10,31,20],[29,21,31,24],[33,10,35,20],[33,21,35,24],[26,25,28,34],[29,25,31,34],[33,25,35,34],[52,21,54,24],[92,8,92,11],[46,3,46,9],[47,3,48,9],[23,3,23,9],[23,10,25,20],[29,3,30,9],[37,3,38,9],[31,3,31,9],[33,3,33,9],[34,3,35,9],[90,15,90,23],[42,3,42,34],[43,25,45,34],[46,25,48,34],[43,10,45,20],[55,10,57,20],[55,21,57,24],[90,24,90,33],[53,3,54,9],[52,3,52,9],[55,25,57,34]]}
[]
[null,null,null,null,null,null,null,"MID-CONSTRUCTION CHECKLIST\nfor New 1&2 Family and 1-3 Storey Residential Buildings",null,null,null,null,null,null,null,null,null,null,null,null,null,null,null,null,null,null,null,null,null,null,null,null,"Version"]
[null,null,null,null,null,null,null,null,null,null,null,null,null,null,null,null,null,null,null,null,null,null,null,null,null,null,null,null,null,null,null,null,2.6]
[null,null,null,null,null,null,null,null,null,null,null,null,null,null,null,null,null,null,null,null,null,null,null,null,null,null,null,null,null,null,null,null,"2023-07-01"]
[null,null,null,"This checklist is to confirm energy components are properly installed and consistent with the building design. It is completed by a certified energy modeller and provided to the Building Official before insulation inspection. One form can be completed for multiple units with matching specifications",null,null,null,null,null,null,null,null,null,null,null,null,null,null,null,null,null,null,null,null,null,null,null,null,null,null,null,null,null,null,null,null,null,null," "]
[null,null,null,"1. Project Information"]
[]
[null,null,null,null,null,null,null,"Project Address:",null,null,null,null,null,null,null,null,null,null,null,null,null,null,null,null,"   Unit #'s (if applicable):"]
[null,"->",null,null,null,null,null,"Energy Pathway:",null,null,null,null,null,null,null,null,null,null,null,null,null,null,null,null,"Building Type:"]
[null,null,null,null,null," ",null," ",null,null," ",null,null,null,null,null,null,null,null,null,null,null,null," "," ",null," ",null," "]
[null,null,null,"2. Building Envelope Characteristics Summary",null,null,null,null,null,null,null,null,null,null,null,null,null,null,null,null,null,null,null,null,null,null,null,null,null,null,null,null,null,null,null,null,null,null," "]
[null,null,null,"MEASURE",null,null,null,null,null,null,"DETAILS (ASSEMBLY / SYSTEM \nTYPE / FUEL TYPE / ETC.)",null,null,null,null,null,null,null,null,null,null,"R-VALUE / EFFICIENCY",null,null,null,"UPGRADE HAS \nBEEN INSTALLED:",null,null,null,null,null,null,null,null,null,null,null,null," "]
[]
[null,null,null,"Insulation & Opaque Envelope"]
[null,null,null,"ABOVE-GRADE WALLS"]
[null,null,null,{"$f":"IF(I9=D153,Q224,IF(I9=D152,Q190,Q156))","v":"Minimum R22 eff. (RSI 3.85)"}]
[]
[null,null,null,"BELOW-GRADE /  FOUNDATION WALLS"]
[]
[null,null,null,{"$f":"IF(I9=D153,Q224,IF(I9=D152,Q190,Q156))","v":"Minimum R22 eff. (RSI 3.85)"},null,null,null,null,null,null,null,null,null,null,null,null,null,null,null,null,null,null,null,null,null,null,null,null,null,null,null,null,null,null,null,null,null,null," "]
[null,null,null,"INSULATED FLOORS"]
[null,null,null,{"$f":"IF(I9=D153,Q234,IF(I9=D152,Q200,Q166))","v":"Minimum R24 eff. (RSI 4.2)"}]
[]
[null,null,null,"FLAT ATTIC"]
[null,null,null,{"$f":"IF(I9=D153,Q228,IF(I9=D152,Q194,Q160))","v":"Minimum R48 effective (RSI 8.5)"}]
[]
[null,null,null,"VAULTED & FLAT ROOF"]
[null,null,null,{"$f":"IF(I9=D153,Q230,IF(I9=D152,Q196,Q162))","v":"Units >110sq.m = R40 eff. (RSI 7.0); \nUnits <110sq.m = R30 (RSI 5.28)"}]
[]
[null,null,null,"BALCONIES & \nEXPOSED SLAB EDGE"]
[null,null,null,null,null,null,null,null,null,null,null,null,null,null,null,null,null,null,null,null,null,null,null,null,null,null,null,null,null,null,null,null,null,null,null,null,null,null," "]
[null,null,null,{"$f":"IF(I9=D153,Q236,IF(I9=D152,Q202,Q168))","v":"Thermal break R2.4 eff. (RSI 0.42)"}]
[null,null,null,"Fenestration & Transparent Envelope",null,null,null,null,null,null,null,null,null,null,null,null,null,null,null,null,null,null,null,null,null,null,null,null,null,null,null,null,null,null,null,null,null,null," ",null," "]
[null,"->",null,"WINDOWS & SLIDING DOORS"]
[null,null,null,{"$f":"IF(I9=D153,Q242,IF(I9=D152,Q208,Q174))","v":"USI 1.22 or lower"},null,null,null,null,null,null,null,null,null,null,null,null,null,null,null,null,null,null,null,null,null,null,null,null,null,null,null,null,null,null,null,null,null," "]
[]
[null,"->",null,"SIDE-HINGED DOORS"]
[null,null,null,{"$f":"IF(I9=D153,Q240,IF(I9=D152,Q206,Q172))","v":"Aside from front entry door, USI 1.80 or lower"}]
[]
[null,null,null,"SKYLIGHTS & SLOPED GLAZING"]
[]
[null,null,null,"Skylights USI ≤ 2.4 W / m2K\nRoof hatch USI ≤ 2.9"]
[null,"->",null,"Mechanical Systems (if installed at this time)",null,null,null,null,null,null,null,null,null,null,null,null,null,null,null,null,null,null,null,null,null,null,null,null,null,null,null,null,null,null,null,null,null,null," "]
[null,null,null,"FIREPLACES"]
[null,null,null,{"$f":"IF(I9=D153,Q250,IF(I9=D152,Q216,Q182))","v":"If gas: maximum combined 60,000 BTU allowable limit"}]
[]
[null,null,null,"SPACE HEATING & COOLING"]
[null,null,null,{"$f":"IF(I9=D153,Q248,IF(I9=D152,Q214,Q180))","v":"Electric systems only"}]
[]
[null,null,null,"DOMESTIC HOT WATER",null,null,null,null,null,null,null,null,null,null,null,null,null,null,null,null,null,null,null,null,null,null,null,null,null,null,null,null,null,null,null,null,null,null,null,null," "]
[null,null,null,{"$f":"IF(I9=D153,Q252,IF(I9=D152,Q218,Q184))","v":"Electric systems only"}]
[]
[null,null,null,"VENTILATION",null,null,null,null,null,null,null,null,null,null,null,null,null,null,null,null,null,null,null,null,null,null,null,null,null,null,null,null,null,null,null,null,null,null," "]
[null,null,null,{"$f":"IF(I9=D153,Q246,IF(I9=D152,Q212,Q178))","v":"HRV - 75% SRE @ 0 deg C\n 65% for Laneway Homes"}]
[null,null,null,null,null,null,null,null,null,null,null,null,null,null,null,null,null,null,null,null,null,null,null,null,null,null,null,null,null,null,null,null,null,null,null,null,null,null," "]
[null,null,null,"OTHER \nENERGY MEASURES"]
[]
[]
[null,null,null,"page 1 of 2"]
[]
[null,null,null,"2. Air Tightness"]
[]
[null,null,null,null,"Air Barrier System & Location",null,null,null,null,null,null,null,null,null,null,null,null,null,null,null,null,null,null,null,null,null,null,null,null,null,null,null,null,null,null,null,null,null," "]
[]
[null,null,null,null,"Interior: ",null,null,null,null,null,null,null,null,null,null,null,null,null,null,null,null,null,null,null,null,null,null,null,null,null,null,null,null,null,null,null,null,null," "]
[null,null,null,null,"Exterior: "]
[]
[]
[null,null,null,null,"Details and Continuity Checklist (checkmark to verify; not all may apply)",null,null,null,null,null,null,null,null,null,null,null,null,null,null,null,null,null,null,null,null,null,null,null,null,null,null,null,null,null,null,null,null,null,null,null," "]
[null,null,null,null,"Yes"," N/A"]
[null,null,null,null,null,null,"Materials: compatible air barrier materials and tapes are used as designed"]
[null,null,null,null,null,null,"Insulation: insulation is continuous; all accessible cavities filled including in narrow sections"]
[null,null,null,null,null,null,"Continuity: air barrier is continuous at corners, junctions, penetrations (holes and cuts) and transitions"]
[null,null,null,null,null,null,"Shower/tub: air barrier is continuous behind showers and tubs, and is fully connected to the wall air barrier",null,null,null,null,null,null,null,null,null,null,null,null,null,null,null,null,null,null,null,null,null,null,null,null,null,null,null,null,null,null,null,null," "]
[null,null,null,null,null,null,"Staircases: air barrier is continuous behind staircases, and is fully connected to the wall air barrier"]
[null,null,null,null,null,null,"Wiring and recessed lighting: air barrier extends continuously behind boxes "]
[null,null,null,null,null,null,"Penetrations: fenestration, utilities, knee walls, shafts connected to exterior are sealed with caulk, tape or equivalent"]
[null,null,null,null,null,null,"Sheathing or sheathing membrane: fully taped at all seams, taped at interior/exterior connections and junctions"]
[null,null,null,null,null,null,"Garages & common walls: air barrier is installed in common walls and between units and garages",null,null,null,null,null,null,null,null,null,null,null,null,null,null,null,null,null,null,null,null,null,null,null,null,null,null,null,null,null,null,null,null," "]
[null,null,null,null,null,null,"Fireplaces: where visible, air barrier is continuous and any gaps are fully sealed with caulk, tape or equivalent"]
[null,null,null,null,null,null,"Party wall: gaps between framing and party-wall fire separation is sealed with non-combustible materials"]
[]
[]
[null,null,null,null,"Blower Door Airtightness Testing (select applicable procedure)"]
[null,"->",null,null,null,"Single unit or per-unit",null,null,null,null,null,null,null,null,null,null,null,null,null,null,null,null,null,null,null,null,null,null,null,null,null,null,null,null,null,null,null,null,null," "]
[null,"->",null,null,null,"Whole building (stacked multi-family)",null,null,null,null,null,null,null,null,null,null,null,null,null,null,null,null,null,null,null,null,null,null,null,null,null,null,null,null,null,null," "]
[null,null,null,null,null,null,null,null,null,null,null,null," ",null,null,null,null," ",null,null,null,null,null,null,null,null,null,null,null,null,null,null,null," ",null,null,null,null,null," "]
[null,null,null,null,"Testing completed:",null,null,null,null,null,"Blower door test (required)",null,null,null,null,null,null,null,"Thermal imaging",null,null,null,null,"Smoke testing",null,null,null,null,"Visual leak analysis",null,null,null,null,null,null,null,null," "]
[null,null,null,null,"Test timing:",null,null,null,null,null,"Pre-drywall",null,null,null,null,null,"Post-drywall",null,null,null,null,null,"Other",null,null,null,null,null," "]
[]
[null,null,null,null,"Measured Air Leakage",null,null,null,null,null,null,null,null,null,null,"Method used to calculate score",null,null,null,null,null,null,null,null,"Achieved air tightness score",null,null,null,null,null,null,null,null,null,null,null,null,null," "]
[]
[null,null,null,null,"Pressure differential",null,null,null," ",null,null,null,"Pa",null,null,null,"Measured Air Leakage data extrapolated by HOT2000",null,null,null,null,null,null,null,null,null,null,null,null,null,null,null,null,null,null,null,null,null," "]
[null,null,null,null,null,null,null,null,null,null," ",null," ",null,null,null,null,null,null,null,null,null,null,null,null,"ACH @50 Pa",null,null,null,null,null,null,null,null,null,null,null," "," "]
[null,null,null,null,"Flow rate",null,null,null," ",null,null,null," ","L/s",null,null,"Result from manometer",null,null,null,null,null,null," ",null,"L/s/m2 @75 Pa \nfor whole building multi-family",null,null,null,null,null,null,null,null,null,null,null,null," "]
[null,null,null,null,null,null,null,null,null,null," "," "," ","CFM",null,null,"Other (describe below)",null,null,null,null,null,null,null,null,null,null,null,null,null,null,null,null,null,null,null,null," "]
[null,null,null,null,null,"Pressurized",null,null,null,null,"De-pressurized",null,null,null,null,null,null,null,null,null,null,null,null," ",null,"NLA (cm2/m2) @10 Pa \nfor units <1,200 ft2",null,null,null,null,null,null,null,null,null,null,null," "]
[]
[]
[null,null,null,null,"Additional Testing Notes"]
[null,null,null,null," "]
[]
[]
[null,null,null,"3. Contact Information & Authorization",null,null,null,null,null,null,null,null,null,null,null,null,null,null,null,null,null,null,null,null,null,null,null,null,null,null,null,null,null,null,null,null,null,null,null,null," "]
[null,null,null,null,null,"By signing, I certify that:"]
[null,null,null,null,null,"• The building as-built to date conforms to the energy model submitted for the Building Permit"]
[null,null,null,null,null,"• This review was completed by the same advisor and/or team that created the original energy model"]
[null,null,null,null,null,"• The building as-built to date is on track to achieve airtightness and energy requirements"]
[]
[null,null,null,"  Energy Advisor (name, #)",null,null,null,null,null,null,null,null,null,null,null,null,null,null,null,null,null,"Builder (company):",null,null,null,null,null,null,null,null,null,null,null,null,null,null,null,null," "]
[null,null,null,"  Company:",null,null,null,null,null,null,null,null,null,null,null,null,null,null,null,null,null,"Contact name:",null,null,null,null,null,null,null,null,null,null,null,null,null,null,null,null,null," ",null," ",null," "]
[null,null,null,"  Email Address or Phone:",null,null,null,null,null,null,null,null,null,null,null,null,null,null,null,null,null,null,null,null,null,null,null,null,null,null,null,null,null,null,null,null,null,null,null," "]
[null,null,null,"  Signature:",null,null,null,null,null,null,null,null,null,null,null,null,null,null,null,null,null,"Builder Signature:",null,null,null,null,null,null,null,null,null,null,null,null,null,null,null," "]
[null,null,null,null,null,null,null," "]
[null,null,null,"  Date: ",null,null,null,null,null,null,null,null,null,null,null,null,null,null,null,null,null,null,null,null,null,null,null,null,null,null,null,null,null,null,null,null," "]
[null,null,null,"Visit www.vancouver.ca/homeenergy for the latest version of this form"]
[null,null,null,null,null,null,null,null,null,null,null,null,null,null,null,null,null,null,null,null,null,null,null,null,null,null," "]
[]
[]
[]
[]
[null,null,null,null,null,null,null,null,null,null,null,null," "]
[]
[]
[]
[]
[]
[]
[]
[null,null,null,"Tables hidden below  ò"]
[null,null,null,null,"Whole building"]
[null,null,null,null,"Individual Units"]
[]
[null,null,null,null,"Ground-oriented"]
[null,null,null,null,"Stacked Multi-family"]
[null,null,null,null,"Other"]
[]
[null,null,null,null,"Ground-oriented Townhouse or Rowhouse"]
[null,null,null,null,"Stacked Multi-family Building (1-3 storeys)"]
[null,null,null,null,"Other"]
[]
[null,null,null,null,"Yes"]
[null,null,null,null,"Y"]
[]
[null,null,null,"Laneway House"]
[null,null,null,"1&2 Family"]
[null,null,null,"Ground-oriented unit (other)"]
[null,null,null,"Stacked Multi-Family"]
[]
[]
[null,null,null,"Option #1: Prescriptive Path"]
[null,null,null,"Option #2: Performance Path"]
[null,null,null,"Option #3: Passive House Path"]
[]
[null,null,null,"REQUIREMENT",null,null,null,null,null,null,null,null,null,null,null,null,"PRESCRIPTIVE PATH"]
[null,null,null,"1.1 Exterior above-grade walls & floor headers",null,null,null,null,null,null,null,null,null,null,null,null,"Minimum R22 eff. (RSI 3.85)"]
[]
[null,null,null,"1.2 Below-grade walls",null,null,null,null,null,null,null,null,null,null,null,null,"Minimum R22 eff. (RSI 3.85)"]
[]
[null,null,null,"1.3 Flat attic",null,null,null,null,null,null,null,null,null,null,null,null,"Minimum R48 effective (RSI 8.5)"]
[]
[null,null,null,"1.4 Flat, vaulted and cathedral roofs",null,null,null,null,null,null,null,null,null,null,null,null,"Units >110sq.m = R40 eff. (RSI 7.0); \nUnits <110sq.m = R30 (RSI 5.28)"]
[]
[null,null,null,"1.5 Under foundation slab ",null,null,null,null,null,null,null,null,null,null,null,null,"Minimum R14 eff. (RSI 2.5)"]
[]
[null,null,null,"1.6 Exposed floors",null,null,null,null,null,null,null,null,null,null,null,null,"Minimum R24 eff. (RSI 4.2)"]
[]
[null,null,null,"1.7 Balconies, eyebrows, and exposed slab edge",null,null,null,null,null,null,null,null,null,null,null,null,"Thermal break R2.4 eff. (RSI 0.42)"]
[]
[null,null,null,"1.8 Air barrier ",null,null,null,null,null,null,null,null,null,null,null,null,"Continuous air barrier design to meet specified target"]
[]
[null,null,null,"2.1 Side-hinged doors",null,null,null,null,null,null,null,null,null,null,null,null,"Aside from front entry door, USI 1.80 or lower"]
[]
[null,null,null,"2.2 Windows, curtainwalls and glazed doors",null,null,null,null,null,null,null,null,null,null,null,null,{"$f":"'Pre Permit Checklist'!R177","v":"USI 1.22 or lower"}]
[]
[null,null,null,"2.3 Skylights and roof hatches   ",null,null,null,null,null,null,null,null,null,null,null,null,"Skylights USI 2.4 or lower. Roof hatches USI 2.9 or lower"]
[]
[null,null,null,"3.1 Ventilation ",null,null,null,null,null,null,null,null,null,null,null,null,"HRV - 75% SRE @ 0 deg C\n 65% for Laneway Homes"]
[]
[null,null,null,"3.2 Heating systems: ",null,null,null,null,null,null,null,null,null,null,null,null,"Electric systems only"]
[]
[null,null,null,"3.3 Fireplaces",null,null,null,null,null,null,null,null,null,null,null,null,"If gas: maximum combined 60,000 BTU allowable limit"]
[]
[null,null,null,"3.4 Domestic hot water",null,null,null,null,null,null,null,null,null,null,null,null,"Electric systems only"]
[]
[null,null,null,"3.5 Recirculating system",null,null,null,null,null,null,null,null,null,null,null,null,"Piping wrapped with pipe insulation R2 (RSI 0.35)"]
[]
[]
[null,null,null,"REQUIREMENT",null,null," ",null,null,null,null,null,null,null,null,null,"PERFORMANCE PATH"]
[null,null,null,"1.1 Exterior above-grade walls & floor headers",null,null,null,null,null,null,null,null,null,null,null,null,"Minimum R22 eff. (RSI 3.85)"]
[]
[null,null,null,"1.2 Below-grade walls",null,null,null,null,null,null,null,null,null,null,null,null,"Minimum R22 eff. (RSI 3.85)"]
[]
[null,null,null,"1.3 Flat attic",null,null,null,null,null,null,null,null,null,null,null,null,"Minimum R48 effective (RSI 8.5)"]
[]
[null,null,null,"1.4 Flat, vaulted and cathedral roofs",null,null,null,null,null,null,null,null,null,null,null,null,"R30 eff. (RSI 5.28), 1&2 Family + LWH: R24 eff. (RSI 4.3)"]
[]
[null,null,null,"1.5 Under foundation slab ",null,null,null,null,null,null,null,null,null,null,null,null,"Minimum R14 eff. (RSI 2.5)"]
[]
[null,null,null,"1.6 Exposed floors",null,null,null,null,null,null,null,null,null,null,null,null,"Minimum R24 eff. (RSI 4.2)"]
[]
[null,null,null,"1.7 Balconies, eyebrows, and exposed slab edge",null,null,null,null,null,null,null,null,null,null,null,null,"Thermal break R2.4 eff. (RSI 0.42)"]
[]
[null,null,null,"1.8 Air barrier ",null,null,null,null,null,null,null,null,null,null,null,null,"Continuous air barrier design to meet specified target"]
[]
[null,null,null,"2.1 Side-hinged doors",null,null,null,null,null,null,null,null,null,null,null,null,"Aside from front entry door, USI 1.80 or lower"]
[]
[null,null,null,"2.2 Windows, curtainwalls and glazed doors",null,null,null,null,null,null,null,null,null,null,null,null,"USI 1.44 or lower"]
[]
[null,null,null,"2.3 Skylights and roof hatches   ",null,null,null,null,null,null,null,null,null,null,null,null,"Skylights USI 2.4 or lower. Roof hatches USI 2.9 or lower"]
[]
[null,null,null,"3.1 Ventilation ",null,null,null,null,null,null,null,null,null,null,null,null,"HRV - 75% SRE @ 0 deg C\n 65% for Laneway Homes"]
[]
[null,null,null,"3.2 Heating systems: ",null,null,null,null,null,null,null,null,null,null,null,null,"Electric or gas. For gas: minimum 92% AFUE"]
[]
[null,null,null,"3.3 Fireplaces",null,null,null,null,null,null,null,null,null,null,null,null,"Direct vent electronic ignition & timer. \nIndicate total # of fireplaces"]
[]
[null,null,null,"3.4 Domestic hot water",null,null,null,null,null,null,null,null,null,null,null,null,"Energy Factor (UEF or EF) ≥ 0.78 or thermal efficiency (TE) ≥ 90% "]
[]
[null,null,null,"3.5 Recirculating system",null,null,null,null,null,null,null,null,null,null,null,null,"Piping wrapped with pipe insulation R2 (RSI 0.35)"]
[]
[]
[null,null,null,"REQUIREMENT",null,null," ",null,null,null,null,null,null,null,null,null,"PASSIVE HOUSE PATH"]
[null,null,null,"1.1 Exterior above-grade walls & floor headers",null,null,null,null,null,null,null,null,null,null,null,null,"Minimum R22 eff. (RSI 3.85)"]
[]
[null,null,null,"1.2 Below-grade walls",null,null,null,null,null,null,null,null,null,null,null,null,"Minimum R22 eff. (RSI 3.85)"]
[]
[null,null,null,"1.3 Flat attic",null,null,null,null,null,null,null,null,null,null,null,null,"Minimum R48 effective (RSI 8.5)"]
[]
[null,null,null,"1.4 Flat, vaulted and cathedral roofs",null,null,null,null,null,null,null,null,null,null,null,null,"R30 eff. (RSI 5.28), 1&2 Family + LWH: R24 eff. (RSI 4.3)"]
[]
[null,null,null,"1.5 Under foundation slab ",null,null,null,null,null,null,null,null,null,null,null,null,"Minimum R14 eff. (RSI 2.5)"]
[]
[null,null,null,"1.6 Exposed floors",null,null,null,null,null,null,null,null,null,null,null,null,"Minimum R24 eff. (RSI 4.2)"]
[]
[null,null,null,"1.7 Balconies, eyebrows, and exposed slab edge",null,null,null,null,null,null,null,null,null,null,null,null,"Thermal break R2.4 eff. (RSI 0.42)"]
[]
[null,null,null,"1.8 Air barrier ",null,null,null,null,null,null,null,null,null,null,null,null,"Continuous air barrier design to meet specified target"]
[]
[null,null,null,"2.1 Side-hinged doors",null,null,null,null,null,null,null,null,null,null,null,null,"Aside from front entry door, USI 1.80 or lower"]
[]
[null,null,null,"2.2 Windows, curtainwalls and glazed doors",null,null,null,null,null,null,null,null,null,null,null,null,"USI 1.44 or lower"]
[]
[null,null,null,"2.3 Skylights and roof hatches   ",null,null,null,null,null,null,null,null,null,null,null,null,"Skylights USI 2.4 or lower. Roof hatches USI 2.9 or lower"]
[]
[null,null,null,"3.1 Ventilation ",null,null,null,null,null,null,null,null,null,null,null,null,"HRV - 75% SRE @ 0 deg C\n 65% for Laneway Homes"]
[]
[null,null,null,"3.2 Heating systems: ",null,null,null,null,null,null,null,null,null,null,null,null,"Electric or gas. For gas: minimum 92% AFUE"]
[]
[null,null,null,"3.3 Fireplaces",null,null,null,null,null,null,null,null,null,null,null,null,"Direct vent electronic ignition & timer. \nIndicate total # of fireplaces"]
[]
[null,null,null,"3.4 Domestic hot water",null,null,null,null,null,null,null,null,null,null,null,null,"Energy Factor (UEF or EF) ≥ 0.78 or thermal efficiency (TE) ≥ 90% "]
[]
[null,null,null,"3.5 Recirculating system",null,null,null,null,null,null,null,null,null,null,null,null,"Piping wrapped with pipe insulation R2 (RSI 0.35)"]

{"sheet":"As-Built Checklist","index":4,"n_rows":154,"n_cols":49,"rows_kept":154,"cut":false,"hidden":false,"merged":[[7,15,7,23],[7,24,7,30],[8,24,8,30],[7,6,7,14],[2,0,4,1],[8,15,8,23],[2,32,2,34],[3,32,3,34],[4,3,4,34],[5,3,5,34],[1,3,3,6],[1,7,3,31],[1,32,1,34],[93,27,93,28],[60,26,60,33],[62,26,63,33],[44,4,44,14],[46,4,47,7],[60,9,60,19],[93,19,93,25],[46,16,47,22],[46,25,46,32],[61,9,61,19],[62,9,63,19],[64,9,64,19],[48,25,49,33],[54,4,54,33],[56,3,56,34],[59,26,59,33],[94,3,94,4],[92,3,92,7],[93,6,93,7],[93,9,93,14],[93,16,93,17],[14,21,14,33],[11,21,11,33],[20,3,20,9],[21,3,21,9],[8,6,8,14],[20,10,21,20],[20,25,21,34],[18,3,18,34],[19,3,19,9],[19,10,19,20],[19,21,19,24],[19,25,19,34],[20,21,21,24],[22,10,23,20],[22,21,23,24],[22,25,23,34],[48,8,48,11],[22,3,22,9],[23,3,23,9],[59,9,59,19],[46,8,46,11],[44,15,44,23],[25,3,26,9],[24,10,26,20],[24,21,26,24],[24,3,24,9],[44,24,44,33],[30,3,30,34],[27,3,29,9],[27,10,29,20],[27,21,29,24],[27,25,29,34],[24,25,26,34]]}
[]
[null,null,null,null,null,null,null,"FINAL (AS-BUILT) CHECKLIST\nfor New 1&2 Family and 1-3 Storey Residential Buildings",null,null,null,null,null,null,null,null,null,null,null,null,null,null,null,null,null,null,null,null,null,null,null,null,"Version"]
[null,null,null,null,null,null,null,null,null,null,null,null,null,null,null,null,null,null,null,null,null,null,null,null,null,null,null,null,null,null,null,null,2.6]
[null,null,null,null,null,null,null,null,null,null,null,null,null,null,null,null,null,null,null,null,null,null,null,null,null,null,null,null,null,null,null,null,"2023-07-01"]
[null,null,null,"This checklist is to confirm energy components are properly installed and consistent with building plans. It is completed by a certified energy modeller and \nis provided to the Building Official before final inspection. One form can be completed for multiple units with matching specifications"]
[null,null,null,"1. Project Information"]
[" "]
[null,null,null,null,null,null,"Address / Unit #(s) ",null,null,null,null,null,null,null,null,"Unit & Model type (dropdown)",null,null,null,null,null,null,null,null,"N File #",null,null,null,null,null,null,null,null,null,null,null,null,null,null,"  "]
[]
[null,null,null,null,null,null,null,null,null,null,null,null,null,null,null,null,null,null,null,null,null,null,null,null,null,null,null,null,null,null,null,null,null,null,null,null,null,null,null," "]
[null,"->",null,null,"Building energy standard: ",null,null,null,null,null,null,"Other project checklists",null,null,null,null,null,null,null,null,null,"Selected energy pathway (dropdown)"]
[null,null,null,null,null,null,null,null,null,null,null,"(attach all that apply)"]
[null,"->",null,null,null,null,null,null,null,null,null,null,null,null,null,null,null,null,null,null,null,null,null,null,null,null,null,null,null,null,null,null,null,null,null,null,null,null," "]
[null,null,null,null,null,null,null,null,null,null,null,null,null,null,null,null,null,null,null,null,null,"Energy modelling software & version: "]
[null,"->",null,null,null,null,null,null,null,null,null,null,null,null,null,null,null,null,null,null,null,null,null,null,null,null,null,null,null,null,null,null,null,null,null,null,null,null," ",null," "]
[null,"->",null,null,null,null,null,null,null,null,null,null,null,null,null,null,null,null,null,null,null,null,null,null,null,null,null,null,null,null,null,null,null,null,null,null,null," "," "," "," "," "," "," "," "," "," "," "," "]
[null,null,null,null,null,null,null,null,null,null,null,null,null,null,null,null,null,null,null,null,null,null,null,null,null,null,null,null,null,null,null,null,null,null,null,null,null," "," "," "," "," "," "," "," "," "," "," "," "]
[null,null,null,null,null,null,null,null,null," ",null,null,null,null,null,null,null,null,null,null,null,null,null,null,null,null,null,null,null,null,null,null,null,null,null,null,null," "," "," "," "," "," "," "," "," "," "," "," "]
[null,null,null,"2. Mechanical System Confirmation",null,null,null,null,null,null,null,null,null,null,null,null,null,null,null,null,null,null,null,null,null,null,null,null,null,null,null,null,null,null,null,null,null," "," "," "," "," "," "," "," "," "," "," "," "]
[null,null,null,"Measure",null,null,null,null,null,null,"System Type / Make & Model / Fuel Type",null,null,null,null,null,null,null,null,null,null,"Efficiency",null,null,null,"Confirmed Installation",null,null,null,null,null,null,null,null,null,null,null," "," "," "," "," "," "," "," "," "," "," "," "]
[null,null,null,"HEATING & COOLING",null,null,null,null,null,null,null,null,null,null,null,null,null,null,null,null,null,null,null,null,null,null,null,null,null,null,null,null,null,null,null,null,null," "," "," "," "," "," "," "," "," "," "," "," "]
[null,null,null,{"$f":"IF(V12=D124,Q148,IF(V12=D123,Q138,Q128))","v":"Electric systems only"}]
[null,null,null,"FIREPLACES",null,null,null,null,null,null,null,null,null,null,null,null,null,null,null,null,null,null,null,null,null,null,null,null,null,null,null,null,null,null,null,null,null," "," "," "," "," "," "," "," "," "," "," "," "]
[null,null,null,{"$f":"IF(V12=D124,Q150,IF(V12=D123,Q140,Q130))","v":"If gas: maximum combined 60,000 BTU allowable limit"}]
[null,null,null,"DOMESTIC HOT WATER",null,null,null,null,null,null,null,null,null,null,null,null,null,null,null,null,null,null,null,null,null,null,null,null,null,null,null,null,null,null,null,null,null,null,null,null," "]
[null,null,null,{"$f":"IF(V12=D124,Q152,IF(V12=D123,Q142,Q132))","v":"Electric systems only"}]
[]
[null,null,null,"VENTILATION\nHRV - 75% SRE @ 0 deg C\n65% for Laneway Homes",null,null,null,null,null,null,null,null,null,null,null,null,null,null,null,null,null,null,null,null,null,null,null,null,null,null,null,null,null,null,null,null,null,null," "]
[]
[null,null,null,null,null,null,null,null,null,null,null,null,null,null,null,null,null,null,null,null,null,null,null,null,null,null,null,null,null,null,null,null,null,null,null,null,null,null," "]
[null,null,null,"3. Air Tightness"]
[]
[null,null,null,null,"Air Barrier System & Location",null,null,null,null,null,null,null,null,null,null,null,null,null,null,null,null,null,null,null,null,null,null,null,null,null,null,null,null,null,null,null,null,null," "]
[]
[null,null,null,null,"Interior: ",null,null,null,null,null,null,null,null,null,null,null,null,null,null,null,null,null,null,null,null,null,null,null,null,null,null,null,null,null,null,null,null,null," "]
[null,null,null,null,"Exterior: "]
[]
[]
[null,null,null,null,"Final Blower Door Airtightness Testing (select applicable procedure)"]
[null,"->",null,null,null,"Single unit or per-unit: 2.5 ACH @ 50Pa or 1.7 NLA for small units under 1,200 sq.ft.",null,null,null,null,null,null,null,null,null,null,null,null,null,null,null,null,null,null,null,null,null,null,null,null,null,null,null,null,null,null,null,null,null," "]
[null,"->",null,null,null,"Whole building (stacked multi-family): 2.03 L/s/m2  @ 75Pa",null,null,null,null,null,null,null,null,null,null,null,null,null,null,null,null,null,null,null,null,null,null,null,null,null,null,null,null,null,null," "]
[null,null,null,null,null,null,null,null,null,null,null,null," ",null,null,null,null," ",null,null,null,null,null,null,null,null,null,null,null,null,null,null,null," ",null,null,null,null,null," "]
[null,null,null,null,"Testing completed:",null,null,null,null,null,"Blower door test (required)",null,null,null,null,null,null,null,"Thermal imaging",null,null,null,null,"Smoke testing",null,null,null,null,"Visual leak analysis",null,null,null,null,null,null,null,null," "]
[]
[null,null,null,null,"Measured Air Leakage",null,null,null,null,null,null,null,null,null,null,"Method used to calculate score",null,null,null,null,null,null,null,null,"Final air tightness score",null,null,null,null,null,null,null,null,null,null,null,null,null," "]
[]
[null,null,null,null,"Pressure differential",null,null,null," ",null,null,null,"Pa",null,null,null,"Measured Air Leakage data extrapolated by HOT2000",null,null,null,null,null,null,null,null,null,null,null,null,null,null,null,null,null,null,null,null,null," "]
[null,null,null,null,null,null,null,null,null,null," ",null," ",null,null,null,null,null,null,null,null,null,null,null,null,"ACH @50 Pa",null,null,null,null,null,null,null,null,null,null,null," "," "]
[null,null,null,null,"Flow rate",null,null,null," ",null,null,null," ","L/s",null,null,"Result from manometer",null,null,null,null,null,null," ",null,"L/s/m2 @75 Pa \nfor whole building multi-family"]
[null,null,null,null,null,null,null,null,null,null," "," "," ","CFM",null,null,"Other (describe below)",null,null,null,null,null,null,null,null,null,null,null,null,null,null,null,null,null,null,null,null," "]
[null,null,null,null,null,null,null,null,null,null,null,null,null,null,null,null,null,null,null,null,null,null,null," ",null,"NLA (cm2/m2) @10 Pa ",null,null,null,null,null,null,null,null,null,null,null," "]
[null,null,null,null,null,null,null,null,null,null,null,null,null,null,null,null,null,null,null,null,null,null,null,null,null,"for dwelling units <1,200 ft2"]
[]
[null,null,null,null,"Additional Testing Notes"]
[]
[]
[null,null,null,"4. Contact Information & Authorization"]
[null,null,null,null,"By signing, I certify that the as-built building conforms to the final energy model:"]
[null,null,null,null,null,null,null,null,null,null,null,null,null,null,null,null,null,null,null,null,null,null,null,null,null,null,null,null,null,null,null,null,null,null,null,null,null," "]
[null,null,null,"  Advisor (name, #)",null,null,null,null,null,null,null,null,null,null,null,null,null,null,null,null,null,"Builder (company):",null,null,null,null,null,null,null,null,null,null,null,null,null,null,null,null,null," "]
[null,null,null,"  Company:",null,null,null,null,null,null,null,null,null,null,null,null,null,null,null,null,null,"Contact name:"]
[null,null,null,"  Email and Phone:",null,null,null,null,null,null,null,null,null,null,null,null,null,null,null,null,null,null,null,null,null,null,null,null,null,null,null,null,null,null,null,null,null," "]
[null,null,null,"  Signature:",null,null,null,null,null,null,null,null,null,null,null,null,null,null,null,null,null,"Builder Signature:",null,null,null,null,null,null,null,null,null,null,null,null,null,null,null," "]
[null,null,null,null,null,null,null," ",null,null,null,null,null,null,null,null,null,null,null,null,null,null,null,null,null,null,null,null,null,null,null,null,null,null,null,null,null,null,null," "]
[null,null,null,"  Date: ",null,null,null,null,null,null,null,null,null,null,null,null,null,null,null,null,null,null,null,null,null,null,null,null,null,null,null,null,null,null,null,null," "]
[null,null,null,"Visit www.vancouver.ca/homeenergy for the latest version of this form",null,null,null,null,null,null,null,null,null,null,null,null,null,null,null,null,null,null,null,null," "]
[null,null,null,null,null,null,null,null,null,null,null,null,null,null,null,null,null,null,null,null,null,null,null,null,null,null," "]
[]
[]
[null,null,null,null,null,null,null,null,null,null,null,null,null,null,null,null,null,null,null,null,null,null,null,null,null,null,null,null,null,null,null,null,null,null,null,null,null,null,null," "]
[]
[null,null,null,null,null,null,null,null,null,null,null,null," "]
[]
[]
[]
[null,null,null,null,null,null,null,null,null,null,null,null,null,null,null,null,null,null,null,null,null,null,null," "]
[]
[]
[]
[]
[]
[]
[]
[]
[]
[]
[]
[]
[]
[]
[]
[]
[]
[]
[]
[]
[]
[]
[]
[]
[]
[]
[]
[]
[]
[null,null,null,"Tables hidden below  ò"]
[null,null,null,null,"Whole building"]
[null,null,null,null,"Individual Units"]
[]
[null,null,null,null,"Laneway House",null,null,null,null,null,null,null,null,"Laneway House"]
[null,null,null,null,"1&2 Family",null,null,null,null,null,null,null,null,"1&2 Family"]
[null,null,null,null,"Ground-oriented unit (other)",null,null,null,null,null,null,null,null,"Ground-oriented unit (other)"]
[null,null,null,null,"Stacked MURB (per unit)",null,null,null,null,null,null,null,null,"Stacked Multi-Family"]
[null,null,null,null,"Stacked MURB (whole building)"]
[]
[null,null,null,null,"Yes",null,null,null,null,null,null,null,null,null,null,null,null," "]
[]
[]
[null,null,null,null,"Y"]
[]
[]
[null,null,null,"Option #1: Prescriptive Path"]
[null,null,null,"Option #2: Performance Path"]
[null,null,null,"Option #3: Passive House Path"]
[]
[null,null,null,"REQUIREMENT",null,null,null,null,null,null,null,null,null,null,null,null,"PRESCRIPTIVE PATH"]
[]
[null,null,null,"3.2 Heating systems: ",null,null,null,null,null,null,null,null,null,null,null,null,"Electric systems only"]
[]
[null,null,null,"3.3 Fireplaces",null,null,null,null,null,null,null,null,null,null,null,null,"If gas: maximum combined 60,000 BTU allowable limit"]
[]
[null,null,null,"3.4 Domestic hot water",null,null,null,null,null,null,null,null,null,null,null,null,"Electric systems only"]
[]
[null,null,null,"3.5 Recirculating system",null,null,null,null,null,null,null,null,null,null,null,null,"Piping wrapped with pipe insulation R2 (RSI 0.35)"]
[]
[null,null,null,"REQUIREMENT",null,null,null,null,null,null,null,null,null,null,null,null,"PERFORMANCE PATH"]
[]
[null,null,null,"3.2 Heating systems: ",null,null,null,null,null,null,null,null,null,null,null,null,"Electric or gas. For gas: minimum 92% AFUE."]
[]
[null,null,null,"3.3 Fireplaces",null,null,null,null,null,null,null,null,null,null,null,null,"Direct vent electronic ignition & timer. \nIndicate total # of fireplaces"]
[]
[null,null,null,"3.4 Domestic hot water",null,null,null,null,null,null,null,null,null,null,null,null,"Energy Factor (UEF or EF) ≥ 0.78 or thermal efficiency (TE) ≥ 90% "]
[]
[null,null,null,"3.5 Recirculating system",null,null,null,null,null,null,null,null,null,null,null,null,"Piping wrapped with pipe insulation R2 (RSI 0.35)"]
[]
[null,null,null,null,null,null,null,null,null,null,null,null,null,null,null,null,null,null,null,null,null,null,null,null,null,null,null,null,null,null,null,null,null,null,null,null,null,null,null,null," "]
[null,null,null,"REQUIREMENT",null,null,null,null,null,null,null,null,null,null,null,null,"PASSIVE HOUSE PATH"]
[null,null,null,"3.2 Heating systems: ",null,null,null,null,null,null,null,null,null,null,null,null,"Electric or gas. For gas: minimum 92% AFUE"]
[]
[null,null,null,"3.3 Fireplaces",null,null,null,null,null,null,null,null,null,null,null,null,"Direct vent electronic ignition & timer. \nIndicate total # of fireplaces"]
[]
[null,null,null,"3.4 Domestic hot water",null,null,null,null,null,null,null,null,null,null,null,null,"Energy Factor (UEF or EF) ≥ 0.78 or thermal efficiency (TE) ≥ 90% "]
[]
[null,null,null,"3.5 Recirculating system",null,null,null,null,null,null,null,null,null,null,null,null,"Piping wrapped with pipe insulation R2 (RSI 0.35)"]

{"sheet":"GHG Calculator FAQ","index":5,"n_rows":40,"n_cols":8,"rows_kept":40,"cut":false,"hidden":false,"merged":[[39,2,39,14],[24,2,24,14],[30,2,30,14],[32,2,32,14],[35,2,35,14]]}
[]
[null,null,"Large Homes Greenhouse Gas Calculator - Overview"]
[]
[null,null,"WHEN IS THIS CALCULATOR REQUIRED?"]
[]
[null,null,"This calculator is required for homes applying for a Building Permit after March 1st 2018 that are 325 square meters in floor space or larger"]
[null,null,"The Annual Carbon Limit is:"]
[null,null," - March 1st 2018 to May 31st, 2020: 3.0 tonnes CO2 / year"]
[null,null,"- June 1st, 2021 and on: 2.0 tonnes CO2 / year"]
[null,null,"For homes outside the scope of EnerGuide (example: >600m2 building area), a HOT2000 'General Mode' or hourly software model must be "]
[null,null,"completed, and the calculator filled out to demonstrate compliance. "]
[null,null,"Read the Modelling Guidelines for Large Homes",null,null,null,null,"https://vancouver.ca/files/cov/modelling-guidelines-large-homes.pdf"]
[]
[null,null,"Certified Passive House Projects and all-electric projects are exempt from this requirement. "]
[]
[null,null,"WHAT ARE THE MODELLING GUIDELINES FOR LARGE HOMES?"]
[]
[null,null,"The Vancouver Building By-law (Article 10.2.2.20) refers to Modelling Guidelines for Large Homes. The most recent guidelines can be downloaded from "]
[null,null,"www.vancouver.ca/home-energy",null,null,".  The guidelines were developed to provide a basis for calculating the total annual GHG emissions footprint of a house, "]
[null,null,"including both base emissions accounted for by the energy model, as well as non-typical loads outside of the model. It is a reference document,"]
[null,null,"the calculations from the guidelines are all built into the calculator"]
[]
[null,null,"WHO FILLS OUT AND SIGNS THE FORM?"]
[]
[null,null,"If the home falls under EnerGuide, an Energy Advisor (EA) models the home, fills out the calculator, signs and submits.\nIf outside of EnerGuide, an Energy Advisor and HOT2000 is still permitted to complete the form in a default mode. In addition, a trained-modeller can complete and sign the calculator provided the City of Vancouver Modelling Guidelines are followed.\n"]
[]
[null,null,"HOW IS THE 325 SQUARE METER VALUE CALCULATED?"]
[]
[null,null,"The square meter calculation is done for the principal residence on the property. The value does not include laneway homes, pool houses etc."]
[]
[null,null,"The GHG calculation is triggered if the Energy Advisor's conditioned interior space calculation used in HOT2000 is ≥325m2"]
[]
[null,null,"To complete the calculator, all conditioned, habited spaces on the property must be modelled. The energy use of the laneway house and guest house cabana (if conditioned space) must have models completed and the energy use inputted in the calculator."]
[null,null,"WHAT ARE NON-TYPICAL LOADS?"]
[]
[null,null,"Non-typical loads are energy uses that are not captured within the typical base loads in the EnerGuide program. Where non-typical energy loads are present in the development, the modeller shall include the energy and GHG emissions from those loads in the total footprint of the development. This is built into the calculator spreadsheet. \n\nCertain items such as cooktops, ice melt systems and outdoor fireplace BTU ratings are not typically included in EnerGuide reporting. Therefore, the Energy Advisor or modeller must work with the builder / designer / homeowner to gather the number of intended non-typical loads on the property"]
[]
[null,null,"WHAT IF I NEED TO ADD ITEMS NOT IN THE LIST?"]
[]
[null,null,"There may be items in the home design that aren't listed in the calculator specifically. There are blank rows in the template to allow for additions. However, you will need to generate a reasonable GJ/a for that product. \n\n\n\n"]

{"sheet":"GHG Calculator Checklist","index":6,"n_rows":168,"n_cols":20,"rows_kept":168,"cut":false,"hidden":false,"merged":[[64,12,64,13],[66,4,66,10],[51,1,51,6],[51,12,51,13],[52,1,52,6],[52,12,52,13],[53,1,53,6],[53,12,53,13],[54,1,54,6],[54,12,54,13],[55,1,55,6],[63,12,63,13],[55,12,55,13],[56,1,56,6],[56,12,56,13],[58,2,58,6],[59,2,59,6],[60,1,60,6],[60,12,60,13],[61,1,61,6],[61,12,61,13],[62,1,62,6],[62,12,62,13],[63,1,63,6],[70,4,70,6],[70,7,70,10],[73,2,73,6],[67,4,67,6],[67,9,67,10],[68,4,68,6],[68,9,68,10],[69,4,69,6],[69,9,69,10],[50,1,50,6],[50,12,50,13],[41,1,41,6],[41,12,41,13],[42,1,42,6],[42,7,42,13],[43,1,43,6],[43,12,43,13],[44,1,44,6],[44,7,44,13],[45,1,45,6],[45,12,45,13],[46,1,46,6],[46,12,46,13],[47,1,47,6],[47,12,47,13],[49,1,49,6],[49,12,49,13],[40,12,40,13],[28,1,28,6],[28,12,28,13],[29,1,29,6],[29,7,29,13],[30,1,30,6],[30,12,30,13],[31,1,31,6],[31,12,31,13],[32,1,32,6],[32,12,32,13],[33,1,33,6],[33,12,33,13],[34,1,34,6],[34,7,34,13],[37,1,37,6],[37,12,37,13],[38,1,38,6],[38,7,38,13],[39,1,39,6],[39,12,39,13],[40,1,40,6],[17,16,17,28],[18,1,18,8],[18,12,18,13],[19,1,19,8],[19,12,19,13],[19,16,19,28],[48,1,48,6],[48,12,48,13],[8,1,8,3],[8,4,8,8],[8,10,8,13],[9,1,9,3],[9,4,9,5],[9,7,9,8],[11,1,11,13],[12,1,12,3],[12,5,12,8],[12,9,12,13],[13,1,13,3],[13,5,13,8],[13,9,13,13],[14,1,14,3],[14,5,14,8],[14,9,14,13],[15,1,15,3],[15,5,15,8],[36,12,36,13],[27,1,27,6],[27,12,27,13],[15,9,15,13],[17,1,17,13],[20,1,20,8],[20,12,20,13],[21,9,21,11],[21,12,21,13],[23,1,23,6],[35,1,35,6],[35,12,35,13],[23,12,23,13],[24,1,24,6],[24,7,24,13],[26,1,26,6],[26,12,26,13],[25,1,25,6],[25,12,25,13],[7,1,7,3],[7,4,7,8],[7,10,7,11],[7,12,7,13],[1,4,1,10],[1,12,1,13],[2,4,2,10],[2,12,2,13],[3,2,4,12],[5,1,5,8],[5,10,5,13],[6,1,6,3],[6,4,6,8],[6,12,6,13]]}
[]
[null,null,null,null,"GHG EMISSIONS CALCULATOR FOR LARGE HOMES",null,null,null,null,null,null,null,"Version 2.6"]
[null,null,null,null,"One and Two Family Dwellings over 325 square meters",null,null,null,null,null,null,null,"Jan 2022"]
[null,null,"This checklist must be completed electronically for 1&2 Family homes with a primary dwelling floor area ≥325 m2 applying for a Building Permit after March 1st 2018. "]
[null,null,null,null,null,null,null,null,null,null,null,null,null,null,null,null,null," "]
[null,"Project Information",null,null,null,null,null,null,null,null,"Exemptions"]
[null,"Project Address:",null,null,null,null,null,null,null,null,"All-electric service"]
[null,"Modelling Software:",null,null,null,null,null,null,null,null,"Passive House / Net Zero",null,null,null,null,null," "]
[null,"Modelling completed by:",null,null,null,null,null,null,null,null,{"$f":"IF(M7=\"X\",\"Exempt\",IF(M8=\"X\",\"Exempt\",\" \"))","v":" "}]
[null,"Calculated Floor Area (m2):",null,null,null,null,"Date: "]
[]
[null,"Heating Systems Modelling"]
[null,"Heating System",null,null,"Energy type","System type (dropdown)",null,null,null,"System details (optional)"]
[null,"Primary"]
[null,"Secondary (backup / peak)"]
[null,"Domestic Hot Water"]
[]
[null,"Model Summary"]
[null,"Primary Dwelling Energy Model Results",null,null,null,null,null,null,null,"Energy Consumption (GJ/a)","Fuel Type\n(Elec/NG)","GHG Emission Factor\n(kgCO2e/GJ)","GHG Emissions \n(tCO2e)",null,null,null," "]
[null,"Modelled Electricity Consumption",null,null,null,null,null,null,null,null,"Electricity",{"$f":"G137","v":3.0555799999999995},{"$f":"J20*L20/1000","v":0},null,null,null,"         "]
[null,"Modelled Natural Gas Consumption",null,null,null,null,null,null,null,null,"Natural Gas",{"$f":"G138","v":51.388930000000002},{"$f":"J21*L21/1000","v":0},null,null,null,null,null," "]
[null,null,null,null,null,null,null,null,null,"Primary Dwelling GHG Emissions in tCO2e",null,null,{"$f":"SUM(M20:M21)","v":0}]
[]
[null,"Non-Typical Load Calculations",null,null,null,null,null,"Installed\n(#)","Area/\nLength\n(m2 or m)","Energy Consumption\n(GJ/a)","Fuel Type\n(Elec/NG)","GHG Emission Factor\n(kgCO2e/GJ)","GHG Emissions \n(tCO2e)"]
[null,"Indoor Appliances"]
[null,"Gas Clothes Dryer",null,null,null,null,null,null,null,3,"Natural Gas",{"$f":"IF(K26=\"Natural Gas\",$G$138,IF(K26=\"Electricity\",$G$137,))","v":51.388930000000002},{"$f":"H26*J26*L26/1000","v":0}]
[null,"Indoor Fireplace (>60 % Efficiency)",null,null,null,null,null,null,null,2,"Natural Gas",{"$f":"IF(K27=\"Natural Gas\",$G$138,IF(K27=\"Electricity\",$G$137,))","v":51.388930000000002},{"$f":"H27*J27*L27/1000","v":0},null,null,null,null,null," "," "]
[null,"Indoor Fireplace (≤60 % Efficiency)",null,null,null,null,null,null,null,3,"Natural Gas",{"$f":"IF(K28=\"Natural Gas\",$G$138,IF(K28=\"Electricity\",$G$137,))","v":51.388930000000002},{"$f":"H28*J28*L28/1000","v":0}]
[null,"Gas Appliance Rough-in",null,null,null,null,null,null,null,3,"Natural Gas",{"$f":"IF(K29=\"Natural Gas\",$G$138,IF(K29=\"Electricity\",$G$137,))","v":51.388930000000002},{"$f":"H29*J29*L29/1000","v":0}]
[null,"Outdoor Fireplaces",null,null,null,null,null,null,null,null,null,null,null,null,null,null,null,null,null," "]
[null,"<30,000 btu/hr (8.8 kW)",null,null,null,null,null,null,null,{"$f":"30000/3412.142*2*52/277.78","v":3.2917475722636524},"Natural Gas",{"$f":"IF(K31=\"Natural Gas\",$G$138,IF(K31=\"Electricity\",$G$137,))","v":51.388930000000002},{"$f":"H31*J31*L31/1000","v":0},null,null,null," "]
[null,"<100,000 btu/hr (29.3 kW)",null,null,null,null,null,null,null,{"$f":"((30000+100000)/2)/3412.142*2*52/277.78","v":7.1321197399045797},"Natural Gas",{"$f":"IF(K32=\"Natural Gas\",$G$138,IF(K32=\"Electricity\",$G$137,))","v":51.388930000000002},{"$f":"H32*J32*L32/1000","v":0}]
[null,"≥100,000 btu/hr (29.3 kW)",null,null,null,null,null,null,null,{"$f":"((100000+150000)/2)/3412.142*2*52/277.78","v":13.715614884431886},"Natural Gas",{"$f":"IF(K33=\"Natural Gas\",$G$138,IF(K33=\"Electricity\",$G$137,))","v":51.388930000000002},{"$f":"H33*J33*L33/1000","v":0}]
[null,"Rough-in",null,null,null,null,null,null,null,6,"Natural Gas",{"$f":"IF(K34=\"Natural Gas\",$G$138,IF(K34=\"Electricity\",$G$137,))","v":51.388930000000002},{"$f":"H34*J34*L34/1000","v":0}]
[null,"Outdoor Heaters & Grills"]
[null,"Plumbed Space or Decorative Space Heaters",null,null,null,null,null,null,null,6,"Natural Gas",{"$f":"IF(K36=\"Natural Gas\",$G$138,IF(K36=\"Electricity\",$G$137,))","v":51.388930000000002},{"$f":"H36*J36*L36/1000","v":0},null,null,null," "," "]
[null,null,null,null,null,null,"Plumbed BBQ's and Grills",null,null,6,"Natural Gas",{"$f":"IF(K37=\"Natural Gas\",$G$138,IF(K37=\"Electricity\",$G$137,))","v":51.388930000000002},{"$f":"H37*J37*L37/1000","v":0}]
[null,"Rough-in",null,null,null,null,null,null,null,6,"Natural Gas",{"$f":"IF(K38=\"Natural Gas\",$G$138,IF(K38=\"Electricity\",$G$137,))","v":51.388930000000002},{"$f":"H38*J38*L38/1000","v":0}]
[null,"Pools and Hot Tubs"]
[null,"Outdoor Pool (Above or Below Ground, Natural Gas Heater, Area in m2)",null,null,null,null,null,null,null,{"$f":"IF(I40=0,0,2.9114*I40-1.0587)","v":0},"Natural Gas",{"$f":"IF(K40=\"Natural Gas\",$G$138,IF(K40=\"Electricity\",$G$137,))","v":51.388930000000002},{"$f":"H40*J40*L40/1000","v":0},null,null," "]
[null,"Indoor Pool (Natural Gas Heater, Area in m2)",null,null,null,null,null,null,null,{"$f":"IF(I41=0,0,1.3617*I41-0.296)","v":0},"Natural Gas",{"$f":"IF(K41=\"Natural Gas\",$G$138,IF(K41=\"Electricity\",$G$137,))","v":51.388930000000002},{"$f":"H41*J41*L41/1000","v":0},null,null,null," "]
[null,"Indoor or Outdoor Hot Tub",null,null,null,null,null,null,null,11,null,{"$f":"IF(K42=\"Natural Gas\",$G$138,IF(K42=\"Electricity\",$G$137,))","v":0},{"$f":"H42*((3*G137)+(8*L42))/1000","v":0},null," ",null,null," "]
[null,"Cooking Areas"]
[null,"Supplemental Stove, Oven, or Cooktop",null,null,null,null,null,null,null,{"$f":"565/277.78","v":2.0339837281301754},null,{"$f":"IF(K44=\"Natural Gas\",$G$138,IF(K44=\"Electricity\",$G$137,))","v":0},{"$f":"H44*J44*L44/1000","v":0},null,null,null," ",null,null," "]
[null,"Outbuildings",null,null,null,null,null,null,null,null,null,null,null,null,null," "]
[null,"Pool House"]
[null,"Modelled Electricity Consumption",null,null,null,null,null,null,null,null,"Electricity",{"$f":"IF(K47=\"Natural Gas\",$G$138,IF(K47=\"Electricity\",$G$137,))","v":3.0555799999999995},{"$f":"J47*L47/1000","v":0},null,null,null,null," "]
[null,"Modelled Natural Gas Consumption",null,null,null,null,null,null,null,null,"Natural Gas",{"$f":"IF(K48=\"Natural Gas\",$G$138,IF(K48=\"Electricity\",$G$137,))","v":51.388930000000002},{"$f":"J48*L48/1000","v":0}]
[null,"Laneway House"]
[null,"Modelled Electricity Consumption",null,null,null,null,null,null,null,null,"Electricity",{"$f":"IF(K50=\"Natural Gas\",$G$138,IF(K50=\"Electricity\",$G$137,))","v":3.0555799999999995},{"$f":"J50*L50/1000","v":0}]
[null,"Modelled Natural Gas Consumption",null,null,null,null,null,null,null,null,"Natural Gas",{"$f":"IF(K51=\"Natural Gas\",$G$138,IF(K51=\"Electricity\",$G$137,))","v":51.388930000000002},{"$f":"J51*L51/1000","v":0},null,null,null,null," "]
[null,"Heated Garage"]
[null,"Modelled Electricity Consumption",null,null,null,null,null,null,null,null,"Electricity",{"$f":"IF(K53=\"Natural Gas\",$G$138,IF(K53=\"Electricity\",$G$137,))","v":3.0555799999999995},{"$f":"J53*L53/1000","v":0},null,null," "]
[null,"Modelled Natural Gas Consumption",null,null,null,null,null,null,null,null,"Natural Gas",{"$f":"IF(K54=\"Natural Gas\",$G$138,IF(K54=\"Electricity\",$G$137,))","v":51.388930000000002},{"$f":"J54*L54/1000","v":0},null,null,null,null," "]
[null,"Other Outbuilding",null,null,null,null,null,null,null,null,null,null,null,null,null,null,null," "]
[null,"Modelled Electricity Consumption",null,null,null,null,null,null,null,null,"Electricity",{"$f":"IF(K56=\"Natural Gas\",$G$138,IF(K56=\"Electricity\",$G$137,))","v":3.0555799999999995},{"$f":"J56*L56/1000","v":0}]
[null,"Modelled Natural Gas Consumption",null,null,null,null,null,null,null,null,"Natural Gas",{"$f":"IF(K57=\"Natural Gas\",$G$138,IF(K57=\"Electricity\",$G$137,))","v":51.388930000000002},{"$f":"J57*L57/1000","v":0},null,null,null," "]
[null,"Other",null,null,null,null,null,null,null,null,null,null,null,null,null,null," "]
[null,null,"Heated Surfaces and Snowmelt System (Area in m2)",null,null,null,null,null,null,{"$f":"0.1*I59","v":0},null,{"$f":"IF(K59=\"Natural Gas\",#REF!,IF(K59=\"Electricity\",#REF!,))","v":0},{"$f":"H59*J59*L59/1000","v":0}]
[null,null,"De-Icing Cable (Length in m)",null,null,null,null,null,null,{"$f":"0.04*I60","v":0},null,{"$f":"IF(K60=\"Natural Gas\",#REF!,IF(K60=\"Electricity\",#REF!,))","v":0},0,null,null," "]
[null,"Spa Rooms (Natural Gas Heater)",null,null,null,null,null,null,null,17,"Natural Gas",{"$f":"IF(K61=\"Natural Gas\",$G$138,IF(K61=\"Electricity\",$G$137,))","v":51.388930000000002},0,null,null,null," "]
[null,"Heated Surfaces and Snowmelt System (Area in m2)",null,null,null,null,null,null,null,{"$f":"0.1*I62","v":0},null,{"$f":"IF(K62=\"Natural Gas\",$G$138,IF(K62=\"Electricity\",$G$137,))","v":0},0]
[null,"De-Icing Cable (Length in m)",null,null,null,null,null,null,null,{"$f":"0.04*I63","v":0},null,{"$f":"IF(K63=\"Natural Gas\",$G$138,IF(K63=\"Electricity\",$G$137,))","v":0},0]
[null,"Other",null,null,null,null,null,null,null,null,null,{"$f":"IF(K64=\"Natural Gas\",$G$138,IF(K64=\"Electricity\",$G$137,))","v":0},0]
[null,null,null,null,null,null,null,null,null,null,null,"Non-Typical Load GHG Emissions in tCO2e",{"$f":"SUM(M26:M64)","v":0}]
[]
[null,null,null,null,"Total GHG Emissions Compliance Check"]
[null,null,null,null,"Primary Dwelling",null,null,{"$f":"M22","v":0},"tCO2e"]
[null,null,null,null,"Non-Typical Loads",null,null,{"$f":"M65","v":0},"tCO2e"]
[null,null,null,null,"Total",null,null,{"$f":"H68+H69","v":0},"tCO2e",{"$f":"IF(I168=2,\"(2.0 tCO2e cap)\",\"(3.0 tCO2e cap)\")","v":"(2.0 tCO2e cap)"},null,null,null,null,null," "]
[null,null,null,null,"Compliant with Large Homes policy?",null,null,{"$f":"IF(M7=\"X\",\"Yes (Exempted) - All Electric\",IF(M8=\"X\",\"Yes (Exempted) - Passive House\",IF(H70<2,\"Yes\",\"No\")))","v":"Yes"}]
[]
[]
[null,null,"  Signed: __________________________________________________________",null,null,null,null,null,"Date: _____________________________________________________________"]
[null,null,"www.vancouver.ca/homeenergy"]
[]
[null,null," "]
[]
[]
[]
[]
[]
[]
[]
[]
[]
[]
[]
[]
[]
[]
[]
[]
[]
[]
[]
[]
[]
[]
[]
[]
[]
[]
[]
[]
[]
[]
[]
[null,null,"X"]
[]
[]
[]
[]
[]
[]
[]
[]
[]
[]
[]
[]
[]
[]
[]
[]
[]
[]
[]
[]
[]
[]
[]
[null,null," "]
[null,null,"Tables hidden below  ò"]
[]
[null,null,"Drop Downs",null,null,"GHG Emission Factor (kgCO2e/GJ) as per CoV Energy Modelling Guidelines v1.0"]
[null,null,"Choose",0,null,"Electricity",{"$f":"G141*277.78","v":3.0555799999999995}]
[null,null,"Electricity",1,null,"Natural Gas",{"$f":"G142*277.778","v":51.388930000000002}]
[null,null,"Natural Gas",2]
[null,null,null,3,null,"GHG Emission Factor (kgCO2e/kWh) as per CoV Energy Modelling Guidelines v1.0"]
[null,null,null,4,null,"Electricity",{"$f":"0.011","v":1.0999999999999999E-2}]
[null,null,null,5,null,"Natural Gas",{"$f":"0.185","v":0.185}]
[null,null,null,6]
[null,null,null,7]
[null,null,null,8,null,null,"X"]
[null,null,null,9]
[null,null,null,10]
[null,null,null,11]
[null,null,null,12,null,null,null,"PRIMARY",null,null,"SECONDARY",null,null,"DHW"]
[null,null,null,13,null,null,null,{"$f":"IF(E14=\"Electric\",\"Air-to-water heat pump\",IF(E14=\"Gas\",\"Gas Boiler\",\" \"))","v":" "},null,null,{"$f":"IF(E15=\"Electric\",\"Air-to-water heat pump\",IF(E15=\"Gas\",\"Gas Boiler\",\" \"))","v":" "},null,null,{"$f":"IF(E16=\"Electric\",\"Air-to-water heat pump\",IF(E16=\"Gas\",\"Gas Boiler - Tank\",\" \"))","v":" "}]
[null,null,null,14,null,null,null,{"$f":"IF(E14=\"Electric\",\"Central air-to-air heat pump\",IF(E14=\"Gas\",\"Gas Furnace\",\" \"))","v":" "},null,null,{"$f":"IF(E15=\"Electric\",\"Central air-to-air heat pump\",IF(E15=\"Gas\",\"Gas Furnace\",\" \"))","v":" "},null,null,{"$f":"IF(E16=\"Electric\",\"Electric Tank\",IF(E16=\"Gas\",\"Gas Boiler - Tankless\",\" \"))","v":" "}]
[null,null,null,15,null,null,null,{"$f":"IF(E14=\"Electric\",\"Air-to-air ductless minisplit\",IF(E14=\"Gas\",\"Other (provide in details)\",\" \"))","v":" "},null,null,{"$f":"IF(E15=\"Electric\",\"Air-to-air ductless minisplit\",IF(E15=\"Gas\",\"Other (provide in details)\",\" \"))","v":" "},null,null,{"$f":"IF(E16=\"Electric\",\"Other (provide details)\",IF(E16=\"Gas\",\"Other (provide in details)\",\" \"))","v":" "}]
[null,null,null,16,null,null,null,{"$f":"IF(E14=\"Electric\",\"Geo-exchange heat pump system\",\" \")","v":" "},null,null,{"$f":"IF(E15=\"Electric\",\"Geo-exchange heat pump system\",\" \")","v":" "}]
[null,null,null,17,null,null,null,{"$f":"IF(E14=\"Electric\",\"Electric Baseboard\",\" \")","v":" "},null,null,{"$f":"IF(E15=\"Electric\",\"Electric Baseboard\",\" \")","v":" "}]
[null,null,null,18,null,null,null,{"$f":"IF(E14=\"Electric\",\"Electric Boiler\",\" \")","v":" "},null,null,{"$f":"IF(E15=\"Electric\",\"Electric Boiler\",\" \")","v":" "}]
[null,null,null,19,null,null,null,{"$f":"IF(E14=\"Electric\",\"Other (provide in details)\",\" \")","v":" "},null,null,{"$f":"IF(E15=\"Electric\",\"Other (provide in details)\",\" \")","v":" "}]
[null,null,null,20]
[null,null,null,21]
[null,null,null,22]
[null,null,null,23]
[null,null,null,24,null,null,null,"Gas",null,"Gas",null,"Electric"]
[null,null,null,25,null,null,null,"Electric",null,"Electric",null,"N/A"]
[null,null,null,26,null,null,null,"N/A",null,"N/A"]
[null,null,null,27]
[null,null,null,28]
[null,null,null,29,null,null,null,"3 tonnes",false]
[null,null,null,30,null,null,null,"2 tonnes",false]
[null,null,null,null,null,null,null,null,{"$f":"IF(OR(I167=TRUE,AND(I166=FALSE,I167=FALSE)),2,3)","v":2},null,null," "]